Cogmind - Beta 9.1 @@@ ROGUE MODE // 2019.11.06 @ 11:16:09 Player: Pimski Result: Destroyed by P-80 Master with Gamma Rifle Performance ------------- Evolutions (9) 4500 Regions Visited (38) 7600 Robots Destroyed (447) 2235 Value Destroyed (21252) 21252 Prototype IDs (116) 2320 Alien Tech Used (9) 1800 Bonus (39070) 39070 TOTAL SCORE: 78777 Bonus ------- Triggered High Security 500 Triggered Max Security 1000 High Alert Combat Kills 13671 Follower Combat Kills 1300 Aligned with FarCom 300 Met Data Miner 300 Met Imprinter 300 Destroyed Z-Imprinter 1000 Met Zhirov 300 Met Warlord at Base 500 MAIN.C Attacked Warlord 500 Met Warlord at Research 2000 Scanned by Researcher 500 Pursued by Intercept 2000 Met Sigix 2000 Activated Exoskeleton 3000 Destroyed MAIN.C Guards 500 Met MAIN.C 5000 Destroyed MAIN.C Shell 5000 Friendly Fire -601 Cogmind --------- Core Integrity 0/1600 Matter 425/425 Energy 348/350 System Corruption 15% Temperature Cool (2) Location -1/Command Parts ------- Power (2) Propulsion (7) Electron Diverter Utility (14) Spectral Analyzer Experimental Target Analyzer Advanced Armor Integrity Analyzer Weapon (2) Inventory (4) Zero-point Reactor Improved Matter Compressor (300) Peak State ------------ Power Vortex Chain Reactor Propulsion Field Propulsion Array Electron Diverter Impulse Thruster Array Improved Q-thruster Cooled Q-thruster Utility Large Storage Unit Experimental Energy Well Spectral Analyzer Experimental Targeting Computer Experimental Targeting Computer Experimental Target Analyzer Experimental Weapon Cycler Advanced Reaction Control System Experimental Utility Shielding Thermal Barrier Experimental Force Field Experimental Hacking Suite System Mapper Advanced System Shield Weapon Sigix Broadsword Inventory Cooled Field Propulsion Drive Field Propulsion Array Cooled Q-thruster Advanced Targeting Computer Advanced Targeting Computer Advanced Core Analyzer Precision Matter Filter Integrity Redistributor Hypervelocity Multirail [Rating: 223] Favorites ----------- Power Vortex Chain Reactor Engine Ion Engine Power Core Light Nuclear Core Reactor Vortex Chain Reactor Propulsion Improved VTOL Module Treads Improved Treads Leg Potential Leg Wheel Armored Wheel Flight Unit Improved VTOL Module Utility High-capacity Storage Unit Device Advanced Reaction Control System Storage High-capacity Storage Unit Processor Advanced Targeting Computer Hackware Advanced Hacking Suite Protection Experimental Utility Shielding Weapon Enhanced Autogun Energy Gun Particle Gun Ballistic Gun Enhanced Autogun Launcher Shock Bomb Launcher Slashing Weapon Power Sword Piercing Weapon Lance Build | -11 -10 -10 -10 -9 -8 -8 -7 -7 -7 -7 -6 -6 -6 -6 -6 -6 -6 -6 -5 -5 -5 -5 -5 -5 -5 -4 -4 -4 -4 -4 -3 -3 -3 -3 -2 -2 -1 -1 ------- Run | Scr Mat Min Exi Min Mat Sto Fac Low Low Dat Pro Fac Was Fac Low Low Zio Dee Pro Fac Was Fac Upp Upp Zhi Pro Fac Upp Upp War Pro Res Qua Sec Res Tes Acc Com Slots Evolved 18 | . . . . . 4 . 2 . . . . 2 . . . . . . . 2 . . . . . . 2 . . . . 2 . . 2 . 2 . Power 1 | . . . . . . . . . . . . . . . . . . . . . . . . . . . 1 . . . . . . . . . . . Propulsion 5 | . . . . . . . 2 . . . . . . . . . . . . 1 . . . . . . 1 . . . . . . . . . 1 . Utility 12 | . . . . . 4 . . . . . . 2 . . . . . . . 1 . . . . . . . . . . . 2 . . 2 . 1 . Weapon . | . . . . . . . . . . . . . . . . . . . . . . . . . . . . . . . . . . . . . . . Parts Attached 255 | 1 10 2 3 1 24 30 23 . . . . 7 . 3 . . 2 14 2 11 5 5 . . 4 . 7 . . 8 . 9 8 5 10 7 17 37 Power 20 | . 2 . . 1 3 1 3 . . . . 1 . . . . . 2 . 1 . 1 . . 1 . 1 . . 1 . . . . . . . 2 Engine 8 | . 2 . . 1 2 . 1 . . . . 1 . . . . . 1 . . . . . . . . . . . . . . . . . . . . Core 6 | . . . . . 1 1 2 . . . . . . . . . . . . . . 1 . . . . 1 . . . . . . . . . . . Reactor 6 | . . . . . . . . . . . . . . . . . . 1 . 1 . . . . 1 . . . . 1 . . . . . . . 2 Propulsion 60 | . 2 2 2 . 4 7 9 . . . . 2 . 1 . . . 1 . 2 5 . . . . . 2 . . 2 . 2 3 . 3 1 6 4 Treads 16 | . . 2 . . 2 7 5 . . . . . . . . . . . . . . . . . . . . . . . . . . . . . . . Leg 3 | . . . 2 . 1 . . . . . . . . . . . . . . . . . . . . . . . . . . . . . . . . . Wheel 2 | . 2 . . . . . . . . . . . . . . . . . . . . . . . . . . . . . . . . . . . . . Hover . | . . . . . . . . . . . . . . . . . . . . . . . . . . . . . . . . . . . . . . . Flight 39 | . . . . . 1 . 4 . . . . 2 . 1 . . . 1 . 2 5 . . . . . 2 . . 2 . 2 3 . 3 1 6 4 Utility 118 | 1 4 . 1 . 10 9 10 . . . . 3 . 2 . . 2 10 1 8 . 4 . . 3 . 4 . . 5 . 6 4 5 5 4 8 9 Device 43 | 1 . . . . 1 . 1 . . . . . . . . . 1 4 . 4 . 1 . . 1 . 1 . . 5 . 3 2 4 3 2 3 6 Storage 17 | . 3 . 1 . 1 3 1 . . . . . . . . . . 3 . . . 1 . . 1 . 1 . . . . . . . 2 . . . Processor 15 | . 1 . . . 2 . 2 . . . . 1 . . . . . . . . . . . . . . . . . . . . . . . 2 4 3 Hackware 19 | . . . . . . . 3 . . . . 2 . 2 . . 1 1 . 2 . 2 . . . . 2 . . . . 3 1 . . . . . Protection 24 | . . . . . 6 6 3 . . . . . . . . . . 2 1 2 . . . . 1 . . . . . . . 1 1 . . 1 . Artifact . | . . . . . . . . . . . . . . . . . . . . . . . . . . . . . . . . . . . . . . . Weapon 57 | . 2 . . . 7 13 1 . . . . 1 . . . . . 1 1 . . . . . . . . . . . . 1 1 . 2 2 3 22 Energy Gun 4 | . 2 . . . 2 . . . . . . . . . . . . . . . . . . . . . . . . . . . . . . . . . Energy Cannon . | . . . . . . . . . . . . . . . . . . . . . . . . . . . . . . . . . . . . . . . Ballistic Gun 30 | . . . . . 4 9 . . . . . . . . . . . . . . . . . . . . . . . . . . . . . 1 2 14 Ballistic Cannon . | . . . . . . . . . . . . . . . . . . . . . . . . . . . . . . . . . . . . . . . Launcher 3 | . . . . . 1 1 . . . . . . . . . . . 1 . . . . . . . . . . . . . . . . . . . . Special Weapon . | . . . . . . . . . . . . . . . . . . . . . . . . . . . . . . . . . . . . . . . Impact Weapon . | . . . . . . . . . . . . . . . . . . . . . . . . . . . . . . . . . . . . . . . Slashing Weapon 18 | . . . . . . 3 1 . . . . 1 . . . . . . . . . . . . . . . . . . . . 1 . 2 1 1 8 Piercing Weapon 2 | . . . . . . . . . . . . . . . . . . . 1 . . . . . . . . . . . . 1 . . . . . . Special Melee Weapon . | . . . . . . . . . . . . . . . . . . . . . . . . . . . . . . . . . . . . . . . Unidentified Prototypes 31 | . . . . . 3 1 1 . . . . . . . . . . 4 . 1 . . . . 3 . . . . 5 . 1 1 3 3 2 . 3 Parts Lost 46 | . 4 . . . 3 1 1 . . . . . . 1 . . . 3 . 1 . . . . . . 1 . . . . 3 1 . . . 1 26 Power 6 | . 1 . . . 1 . . . . . . . . . . . . 1 . . . . . . . . . . . . . . . . . . . 3 Propulsion 7 | . . . . . . . . . . . . . . . . . . . . . . . . . . . . . . . . . . . . . . 7 Utility 25 | . 1 . . . 1 . 1 . . . . . . 1 . . . 2 . 1 . . . . . . 1 . . . . 3 1 . . . 1 12 Weapon 8 | . 2 . . . 1 1 . . . . . . . . . . . . . . . . . . . . . . . . . . . . . . . 4 Highest Loss Streak 26 | . 2 . . . 2 1 1 . . . . . . 1 . . . 3 . 1 . . . . . . 1 . . . . 2 1 . . . 1 26 Average Slot Usage (%) 90 | . 98 100 100 100 97 99 97 92 92 92 92 92 93 89 93 93 92 92 93 93 88 88 88 88 87 88 84 84 84 78 78 79 80 79 79 82 83 85 Engine 3 | . 13 14 14 14 2 5 . 7 7 7 7 6 6 6 6 6 6 3 . . . . . . . . . . . . . . . . . . . . Core 1 | . . . . . 4 3 6 . . . . . . . . . . . . . . 1 5 5 . . 5 5 5 . . . . . . . . . Reactor 2 | . . . . . . . . . . . . . . . . . . 2 6 5 5 3 . . 4 5 5 5 5 5 5 4 4 4 4 4 4 3 Treads 4 | . . 6 13 . 1 18 25 . . . . . . . . . . . . . . . . . . . . . . . . . . . . . . . Leg 2 | . 3 . 14 28 16 . . . . . . . . . . . . . . . . . . . . . . . . . . . . . . . . . Wheel 1 | . 24 21 . . . . . . . . . . . . . . . . . . . . . . . . . . . . . . . . . . . . Flight 13 | . . . . . . . 3 30 30 30 30 25 26 26 26 26 26 26 26 29 23 23 23 23 23 23 21 21 21 21 21 18 19 19 17 17 20 19 Device 9 | . 4 . . . 3 . . 7 7 7 7 6 6 6 6 6 6 5 11 7 5 9 11 11 10 11 6 5 5 4 5 9 15 14 17 17 18 23 Storage 13 | . 15 28 28 28 21 29 27 7 7 7 7 6 6 6 6 6 6 11 13 11 11 6 5 5 5 5 5 5 5 5 5 4 4 4 6 8 7 3 Processor 10 | . 7 . . . 17 9 6 7 7 7 7 6 6 6 6 6 6 6 6 5 5 5 5 5 5 5 5 5 5 5 5 4 4 4 4 4 17 27 Hackware 9 | . . . . . . . 2 15 15 15 15 25 26 23 26 26 25 22 20 19 23 23 23 23 23 23 24 26 26 26 26 26 23 23 21 20 7 . Protection 5 | . . . . . 10 14 6 7 7 7 7 6 6 6 6 6 6 5 1 4 5 5 5 5 5 5 5 5 5 5 5 4 2 2 4 4 3 . Energy Gun 1 | . 13 14 14 14 3 . . . . . . . . . . . . . . . . . . . . . . . . . . . . . . . . . Ballistic Gun 6 | . 14 14 14 14 14 17 13 . . . . . . . . . . . . . . . . . . . . . . . . . . . . . 2 6 Slashing Weapon 1 | . . . . . . . . 7 7 7 7 6 6 6 6 6 6 6 5 . . . . . . . . . . . . . 1 4 3 4 1 . Piercing Weapon 1 | . . . . . . . . . . . . . . . . . . . . 5 5 5 5 5 5 5 5 5 5 5 5 3 2 . . . . . Naked Turns . | . . . . . . . . . . . . . . . . . . . . . . . . . . . . . . . . . . . . . . . Heaviest Build 128 | 13 50 50 74 74 95 128 128 24 24 24 24 24 23 23 23 23 24 25 24 25 24 25 20 20 27 27 38 38 38 57 56 60 67 66 73 73 85 89 Greatest Support 110 | 20 24 40 60 60 60 46 89 24 24 24 24 25 25 24 24 24 24 25 25 31 39 39 33 39 39 39 53 53 53 63 63 63 81 81 79 84 93 110 Greatest Overweight (x) 3 | . 2 2 2 1 3 2 2 . . . . . . . . . . . . . . . . . . . . . . . . . . 1 1 1 1 . Average Overweight (x) . | . . 1 1 1 1 2 . . . . . . . . . . . . . . . . . . . . . . . . . . . . . . . . Largest Inventory Capacity 34 | 6 16 16 20 20 26 34 34 8 8 8 8 8 8 8 8 8 8 8 8 8 8 8 8 8 8 8 10 10 10 10 10 10 10 10 10 10 10 10 Average Capacity 14 | 6 9 16 19 20 22 29 31 8 8 8 8 8 8 8 8 8 8 8 8 8 8 8 8 8 8 8 8 10 10 10 10 10 10 10 10 10 10 9 Most Carried 34 | 6 16 16 20 20 26 34 34 8 8 8 8 8 8 8 8 8 8 8 8 8 8 8 8 8 8 8 10 10 10 10 10 10 10 10 10 10 10 10 Average Carried 14 | 6 9 16 18 19 21 29 30 8 8 8 7 7 8 8 8 8 7 7 8 7 7 7 8 8 7 8 8 10 10 9 10 9 9 9 9 9 9 9 Final Capacity 34 | 6 16 16 20 20 26 34 8 8 8 8 8 8 8 8 8 8 8 8 8 8 8 8 8 8 8 8 10 10 10 10 10 10 10 10 10 10 10 4 Final Carried 34 | 6 16 16 20 20 26 34 8 8 8 8 8 8 8 8 8 8 8 8 8 8 8 8 8 8 8 8 10 10 10 10 10 10 9 10 10 10 8 2 Class Distribution -------------------- 29% | Hauler-Mutant 22% | Hacker-Sprinter 19% | Mechanic-Sprinter 16% | Wizard-Sprinter 8% | Mutant Dominant Class ---------------- Mutant | -10/Materials Mutant | -10/Mines Hauler-Mutant | -10/Exiles Hauler-Mutant | -9/Mines Hauler-Mutant | -8/Materials Hauler-Mutant | -8/Storage Hauler-Mutant | -7/Factory Scavenger-Sprinter | -7/Lower Caves Scavenger-Sprinter | -7/Lower Caves Scavenger-Sprinter | -7/Data Miner Scavenger-Sprinter | -6/Proximity Caves Hacker-Sprinter | -6/Factory Hacker-Sprinter | -6/Waste Hacker-Sprinter | -6/Factory Hacker-Sprinter | -6/Lower Caves Hacker-Sprinter | -6/Lower Caves Hacker-Sprinter | -6/Zion Hacker-Sprinter | -6/Deep Caves Hacker-Sprinter | -5/Proximity Caves Hacker-Sprinter | -5/Factory Hacker-Sprinter | -5/Waste Hacker-Sprinter | -5/Factory Hacker-Sprinter | -5/Upper Caves Hacker-Sprinter | -5/Upper Caves Hacker-Sprinter | -5/Zhirov Hacker-Sprinter | -4/Proximity Caves Wizard-Sprinter | -4/Factory Wizard-Sprinter | -4/Upper Caves Wizard-Sprinter | -4/Upper Caves Wizard-Sprinter | -4/Warlord Wizard-Sprinter | -3/Proximity Caves Wizard-Sprinter | -3/Research Wizard-Sprinter | -3/Quarantine Wizard-Sprinter | -3/Section 7 Wizard-Sprinter | -2/Research Wizard-Sprinter | -2/Testing Mechanic-Sprinter | -1/Access Mechanic-Sprinter | -1/Command Resources | -11 -10 -10 -10 -9 -8 -8 -7 -7 -7 -7 -6 -6 -6 -6 -6 -6 -6 -6 -5 -5 -5 -5 -5 -5 -5 -4 -4 -4 -4 -4 -3 -3 -3 -3 -2 -2 -1 -1 ----------- Run | Scr Mat Min Exi Min Mat Sto Fac Low Low Dat Pro Fac Was Fac Low Low Zio Dee Pro Fac Was Fac Upp Upp Zhi Pro Fac Upp Upp War Pro Res Qua Sec Res Tes Acc Com Matter Collected 7785 | 234 293 3 95 55 902 1071 565 1 77 . . 40 . . 65 . 30 161 20 102 58 50 . . 50 . 70 . . 80 . 80 . 184 322 70 250 2857 Remotely 173 | 26 147 . . . . . . . . . . . . . . . . . . . . . . . . . . . . . . . . . . . . . Salvage Created 28740 | 91 801 56 80 79 2313 2122 930 . . . . 276 . . . . . 183 . 303 68 201 . . 169 . 288 . . . . 400 . . 291 234 928 18927 Parts 1000 | 7 40 3 2 2 127 110 42 . . . . 7 . . . . . 19 . 9 . 8 . . 3 . 7 . . . . 15 . . 14 16 26 543 Haulers Intercepted 29 | . 2 . . . 4 6 1 . . . . 3 . . . . . . . 3 . 2 . . . . 3 . . . . 3 . . 2 . . . Recyclers Shooed 18 | . 7 . . . 1 . 4 . . . . . . . . . . . . . . . . . . . . . . . . . . . . . 1 5 Parts Field Recycled . | . . . . . . . . . . . . . . . . . . . . . . . . . . . . . . . . . . . . . . . Retrieved Matter . | . . . . . . . . . . . . . . . . . . . . . . . . . . . . . . . . . . . . . . . Parts Self-Destructed 25 | . . . . . . . . 3 . . . . . . . . . . . . . . 1 3 1 . . . . 17 . . . . . . . . Prevented 7 | . . . . . . . . . . . . . . . . . . . . . . . . . . . . . . 7 . . . . . . . . Kills | -11 -10 -10 -10 -9 -8 -8 -7 -7 -7 -7 -6 -6 -6 -6 -6 -6 -6 -6 -5 -5 -5 -5 -5 -5 -5 -4 -4 -4 -4 -4 -3 -3 -3 -3 -2 -2 -1 -1 ------- Run | Scr Mat Min Exi Min Mat Sto Fac Low Low Dat Pro Fac Was Fac Low Low Zio Dee Pro Fac Was Fac Upp Upp Zhi Pro Fac Upp Upp War Pro Res Qua Sec Res Tes Acc Com Combat Hostiles Destroyed 296 | . 11 1 . 2 35 28 15 . . . . . . . . . . 2 . . . . . . . . . . . . . . . . . 2 7 193 Melee 6 | . . . . . . 1 . . . . . . . . . . . . . . . . . . . . . . . . . . . . . 2 . 3 Guns 281 | . 11 1 . 2 29 26 15 . . . . . . . . . . . . . . . . . . . . . . . . . . . . . 7 190 AOE 9 | . . . . . 6 1 . . . . . . . . . . . 2 . . . . . . . . . . . . . . . . . . . . Classes Destroyed 22 | 2 6 . 1 . 5 . . . . . . . . . . . . 1 . . . . . . . . . . . . . . . . 1 1 . 5 Worker 24 | . 1 . . . 2 2 2 . . . . . . . . . . . . . . . . . . . . . . . . . . . . . . 17 Builder 1 | . . . . . . . . . . . . . . . . . . . . . . . . . . . . . . . . . . . 1 . . . Tunneler 3 | 2 . . . . 1 . . . . . . . . . . . . . . . . . . . . . . . . . . . . . . . . . Hauler 29 | . 2 . . . 4 6 1 . . . . 3 . . . . . . . 3 . 2 . . . . 3 . . . . 3 . . 2 . . . Recycler 26 | 1 3 . . . 2 5 2 . . . . . . . . . . . . . . . . . . . . . . . . . . . 1 1 2 9 Carrier 9 | . . . . . . . . . . . . . . . . . . . . . . . . . . . . . . . . . . . . . . 9 Mechanic 15 | . . . . . 2 2 . . . . . . . . . . . . . . . . . . . . . . . . . . . . . . . 11 Operator 13 | . 2 . . . 3 4 1 . . . . . . . . . . . . 1 . . . . . . . . . . . 1 . . . . . 1 Watcher 18 | . 1 . . . 3 . 2 . . . . . . . . . . . . . . 1 . . . . . . . . . 2 . . . . 2 7 Swarmer 28 | . 3 . . . 4 5 3 . . . . . . . . . . . . . . . . . . . . . . . . . . . . . . 13 Saboteur 12 | . . . . . . . . . . . . . . . . . . . . . . . . . . . . . . . . . . . . . . 12 Grunt 148 | . 8 1 . 2 20 11 10 . . . . . . . . . . . . . . . . . . . . . . . . . . . . . . 96 Brawler 23 | . . . . . 2 . . . . . . . . . . . . . . . . . . . . . . . . . . . . . . . . 21 Duelist 19 | . . . . . 2 . . . . . . . . . . . . . . . . . . . . . . . . . . . . . . . . 17 Protector 10 | . . . . . . . . . . . . . . . . . . . . . . . . . . . . . . . . . . . . . . 10 Sentry 26 | . . . . . 6 11 2 . . . . . . . . . . . . . . . . . . . . . . . . . . . . . 2 5 Hunter 14 | . . . . . 1 1 . . . . . . . . . . . . . . . . . . . . . . . . . . . . . . 2 10 Programmer 6 | . . . . . . . . . . . . . . . . . . . . . . . . . . . . . . . . . . . . 2 1 3 Behemoth 1 | . . . . . . . . . . . . . . . . . . . . . . . . . . . . . . . . . . . . . . 1 M Guard 2 | . . . . . . . . . . . . . . . . . . . . . . . . . . . . . . . . . . . . . . 2 Tracker 1 | . . . . . . . . . . . . . . . . . . . . . . . . . . . . . . . . . . . . . 1 . Combat Programmer 3 | . . . . . . . . . . . . . . . . . . . . . . . . . . . . . . . . . . . . . 1 2 Investigator 5 | . . . . . . . . . . . . . . . . . . . . . . . . . . . . . . . . . . . . . . 5 Zionite 1 | . . . 1 . . . . . . . . . . . . . . . . . . . . . . . . . . . . . . . . . . . Z-Technician 5 | . . . . . . . . . . . . . . . . . . 5 . . . . . . . . . . . . . . . . . . . . Z-Light 2 | . . . . . . . . . . . . . . . . . . 2 . . . . . . . . . . . . . . . . . . . . Thug 2 | . . . 1 . . 1 . . . . . . . . . . . . . . . . . . . . . . . . . . . . . . . . Best Kill Streak 55 | 2 6 1 . 2 10 6 3 . . . . 1 . . . . . 5 . 2 . 2 . . . . 2 . . . . 2 . . 2 2 5 55 Combat Bots Only 45 | . 4 1 . 2 6 4 3 . . . . . . . . . . 2 . . . . . . . . . . . . . . . . . 2 3 45 Max Kills in Single Turn 4 | 1 1 1 1 1 3 3 1 . . . . 1 . . . . . 2 . 1 . 1 . . . . 1 . . . . 1 . . 1 1 1 4 Gunslinging 1 | . . . . . . . . . . . . . . . . . . . . . . . . . . . . . . . . . . . . . . 1 Exploded 3 | . . . . . 3 1 . . . . . . . . . . . 2 . . . . . . . . . . . . . . . . . . . . Melee 1 | . . . . . . 1 . . . . . . . . . . . . . . . . . . . . . . . . . . . . . 1 . 1 Uniques/NPCs Destroyed 2 | . . . . . . . . . . . . . . . . . . 1 . . . . . . . . . . . . . . . . . . . 1 Z-Imprinter (-6/Deep Caves) MAIN.C Shell (-1/Command) Combat | -11 -10 -10 -10 -9 -8 -8 -7 -7 -7 -7 -6 -6 -6 -6 -6 -6 -6 -6 -5 -5 -5 -5 -5 -5 -5 -4 -4 -4 -4 -4 -3 -3 -3 -3 -2 -2 -1 -1 -------- Run | Scr Mat Min Exi Min Mat Sto Fac Low Low Dat Pro Fac Was Fac Low Low Zio Dee Pro Fac Was Fac Upp Upp Zhi Pro Fac Upp Upp War Pro Res Qua Sec Res Tes Acc Com Damage Taken 13202 | . 453 18 . 242 1439 1434 848 14 27 91 . 31 . . 61 18 . 406 132 38 . 59 . . . . 39 23 . . 199 57 491 1328 173 340 690 4551 Core 2542 | . 95 . . 66 183 221 60 . 27 . . 31 . . 40 . . 159 . 19 . . . . . . . . . . 23 . 8 103 . . 87 1420 Absorbed by Shields 1860 | . . . . . . . . . . . . . . . . . . . . . . . . . . . . . . . . . . . . . 523 1337 Core Remaining (%) 78 | 100 . . . 35 . 26 . . . . 87 . . . . . . . 72 . . . . . . 98 . . . . 98 . . 95 . 92 . . Volleys Fired 1015 | 10 69 1 16 15 133 124 61 . . . . . . . . . . 6 . . . . . . . . . . . . . . . . . . 50 530 Largest 2 | 2 2 2 1 2 2 2 2 . . . . . . . . . . 1 . . . . . . . . . . . . . . . . . . 1 2 Hottest 90 | 60 85 85 65 85 90 53 40 . . . . . . . . . . 43 . . . . . . . . . . . . . . . . . . 50 85 Shots Fired 1564 | 18 135 2 16 22 256 238 122 . . . . . . . . . . 6 . . . . . . . . . . . . . . . . . . 50 699 Gun 1552 | 18 135 2 16 22 254 234 122 . . . . . . . . . . . . . . . . . . . . . . . . . . . . . 50 699 Cannon . | . . . . . . . . . . . . . . . . . . . . . . . . . . . . . . . . . . . . . . . Launcher 12 | . . . . . 2 4 . . . . . . . . . . . 6 . . . . . . . . . . . . . . . . . . . . Special . | . . . . . . . . . . . . . . . . . . . . . . . . . . . . . . . . . . . . . . . Kinetic 1433 | 8 66 1 15 15 223 234 122 . . . . . . . . . . . . . . . . . . . . . . . . . . . . . 50 699 Thermal 95 | 10 69 1 1 7 7 . . . . . . . . . . . . . . . . . . . . . . . . . . . . . . . . . Explosive . | . . . . . . . . . . . . . . . . . . . . . . . . . . . . . . . . . . . . . . . Electromagnetic 36 | . . . . . 26 4 . . . . . . . . . . . 6 . . . . . . . . . . . . . . . . . . . . Robot Hit Streak 81 | 4 10 1 3 9 33 26 45 . . . . . . . . . . 1 . . . . . . . . . . . . . . . . . . 12 81 Robot Miss Streak 5 | 5 4 1 2 3 3 2 2 . . . . . . . . . . 2 . . . . . . . . . . . . . . . . . . 3 3 Penetration Max 4 | . . . . . . . . . . . . . . . . . . . . . . . . . . . . . . . . . . . . . 1 4 Secondary Targets 16 | . 3 . . 1 5 1 . . . . . . . . . . . . . . . . . . . . . . . . . . . . . . . 6 Max Gunslinging Chain 1 | . 1 . . 1 1 1 . . . . . . . . . . . . . . . . . . . . . . . . . . . . . . . 1 Shots Hit Robots 1373 | 10 85 1 10 15 198 186 103 . . 1 . 11 . . . . . 10 . 11 1 12 . . 4 . 6 1 . . . 11 . . 8 7 43 639 Core Hits 1149 | 4 37 1 3 5 98 81 40 . . . . 4 . . . . . 8 . 5 1 4 . . 3 . 3 . . . . 6 . . 4 3 35 804 Critical Hits 833 | . 1 . . . 2 1 2 . . . . 1 . . . . . 1 . . . 2 . . . . . . . . . . . . 4 1 65 753 Critical Kills 235 | . . . . . . 1 1 . . . . . . . . . . 1 . . . 1 . . . . . . . . . . . . 3 . 10 218 Critical Parts Destroyed 377 | . 1 . . . 2 . 1 . . . . 1 . . . . . . . . . 1 . . . . . . . . . . . . 1 1 26 343 Melee Attacks 413 | . . . . . . 3 19 8 3 1 3 34 . 6 6 8 9 27 6 35 1 33 7 1 4 5 21 8 . 6 9 36 13 37 12 21 1 30 Impact . | . . . . . . . . . . . . . . . . . . . . . . . . . . . . . . . . . . . . . . . Slashing 235 | . . . . . . 3 19 8 3 1 3 34 . 6 6 8 9 27 6 . . . . . . . . . . . . . 1 37 12 21 1 30 Piercing 178 | . . . . . . . . . . . . . . . . . . . . 35 1 33 7 1 4 5 21 8 . 6 9 36 12 . . . . . Sneak Attacks 31 | . . . . . . . 2 . . 1 . 3 . . . . . 6 . 4 . 3 . . . . 2 1 . . . 5 . . 3 1 . . Combat Hostiles 1 | . . . . . . . . . . . . . . . . . . 1 . . . . . . . . . . . . . . . . . . . . Follow-up Attacks . | . . . . . . . . . . . . . . . . . . . . . . . . . . . . . . . . . . . . . . . Damage Inflicted 33179 | 132 1124 26 150 230 3517 3618 2449 . . 125 . 753 . . . . . 1242 . 839 132 833 . . 621 . 435 143 . . . 866 . 1 1153 870 554 13366 Guns 22267 | 132 1124 26 150 230 3175 3128 1954 . . . . . . . . . . . . . . . . . . . . . . . . . . . . . 554 11794 Cannons . | . . . . . . . . . . . . . . . . . . . . . . . . . . . . . . . . . . . . . . . Explosions 1074 | . . . . . 330 448 . . . . . . . . . . . 296 . . . . . . . . . . . . . . . . . . . . Melee 9753 | . . . . . . . 465 . . 125 . 753 . . . . . 946 . 839 132 833 . . 621 . 435 143 . . . 866 . . 1153 870 . 1572 Ramming 85 | . . . . . 12 42 30 . . . . . . . . . . . . . . . . . . . . . . . . . . 1 . . . . Kinetic 20956 | 44 485 11 150 153 2683 3128 1954 . . . . . . . . . . . . . . . . . . . . . . . . . . . . . 554 11794 Thermal 1339 | 88 639 15 . 77 323 77 . . . . . . . . . . . 120 . . . . . . . . . . . . . . . . . . . . Explosive . | . . . . . . . . . . . . . . . . . . . . . . . . . . . . . . . . . . . . . . . Electromagnetic 1046 | . . . . . 499 371 . . . . . . . . . . . 176 . . . . . . . . . . . . . . . . . . . . Impact . | . . . . . . . . . . . . . . . . . . . . . . . . . . . . . . . . . . . . . . . Slashing 5884 | . . . . . . . 465 . . 125 . 753 . . . . . 946 . . . . . . . . . . . . . . . . 1153 870 . 1572 Piercing 3869 | . . . . . . . . . . . . . . . . . . . . 839 132 833 . . 621 . 435 143 . . . 866 . . . . . . Highest Corruption 15 | . . . . . . . . . . . . 1 10 11 11 11 11 . . . . . . . . . . . . . . 1 5 9 . 2 6 15 Average Corruption 10 | . . . . . . . . . . . . 1 2 10 11 11 11 . . . . . . . . . . . . . . 1 2 8 . 1 3 13 Corruption Purged . | . . . . . . . . . . . . . . . . . . . . . . . . . . . . . . . . . . . . . . . Effects 351 | . . . . . . . . . . . . 2 . 15 13 10 1 . . . . . . . . . . . . . . . 2 15 . . 1 292 Message Errors 49 | . . . . . . . . . . . . 2 . 3 1 1 . . . . . . . . . . . . . . . . 2 5 . . . 35 Matter Fused 33 | . . . . . . . . . . . . . . . 1 2 . . . . . . . . . . . . . . . . . 3 . . . 27 Heat Flow Errors 25 | . . . . . . . . . . . . . . 3 . . . . . . . . . . . . . . . . . . . 1 . . . 21 Energy Discharges 21 | . . . . . . . . . . . . . . 1 1 1 . . . . . . . . . . . . . . . . . 2 . . . 16 Data Loss (minor) 16 | . . . . . . . . . . . . . . . 1 . 1 . . . . . . . . . . . . . . . . . . . . 14 Data Loss (major) 11 | . . . . . . . . . . . . . . 2 1 . . . . . . . . . . . . . . . . . . 1 . . . 7 Misfires 7 | . . . . . . . . . . . . . . . . . . . . . . . . . . . . . . . . . . . . . . 7 Alerts 3 | . . . . . . . . . . . . . . . . . . . . . . . . . . . . . . . . . . . . . . 3 Misdirections 58 | . . . . . . . . . . . . . . 4 7 6 . . . . . . . . . . . . . . . . . . . . . 41 Targeting Errors 109 | . . . . . . . . . . . . . . 2 1 . . . . . . . . . . . . . . . . . . 3 . . 1 102 Weapon Failures 19 | . . . . . . . . . . . . . . . . . . . . . . . . . . . . . . . . . . . . . . 19 Overload Shots . | . . . . . . . . . . . . . . . . . . . . . . . . . . . . . . . . . . . . . . . Overflow Damage 1306 | . . . . . . 7 156 . . 5 . 22 . . . . . 403 . 108 . 95 . . 140 . 24 . . . . 166 . . 66 114 . . Projectiles . | . . . . . . . . . . . . . . . . . . . . . . . . . . . . . . . . . . . . . . . Explosions 39 | . . . . . . 7 . . . . . . . . . . . 32 . . . . . . . . . . . . . . . . . . . . Melee 1267 | . . . . . . . 156 . . 5 . 22 . . . . . 371 . 108 . 95 . . 140 . 24 . . . . 166 . . 66 114 . . Knockbacks . | . . . . . . . . . . . . . . . . . . . . . . . . . . . . . . . . . . . . . . . Impact . | . . . . . . . . . . . . . . . . . . . . . . . . . . . . . . . . . . . . . . . Kinetic . | . . . . . . . . . . . . . . . . . . . . . . . . . . . . . . . . . . . . . . . Secondary . | . . . . . . . . . . . . . . . . . . . . . . . . . . . . . . . . . . . . . . . Self-Inflicted Damage 20 | . . . . . . 20 . . . . . . . . . . . . . . . . . . . . . . . . . . . . . . . . Shots 1 | . . . . . . 1 . . . . . . . . . . . . . . . . . . . . . . . . . . . . . . . . Rammed 13 | . . . . . 2 5 5 . . . . . . . . . . . . . . . . . . . . . . . . . . 1 . . . . Targets Rammed 14 | . . . . . 2 6 5 . . . . . . . . . . . . . . . . . . . . . . . . . . 1 . . . . Kicked . | . . . . . . . . . . . . . . . . . . . . . . . . . . . . . . . . . . . . . . . Crushed 1 | . . . . . . 1 . . . . . . . . . . . . . . . . . . . . . . . . . . . . . . . . Highest Temperature 344 | 2 144 24 24 222 344 131 14 . 11 . . . . 266 2 . . 188 5 43 86 46 . . . . . . . . . . . 204 . . . 126 Average Temperature 36 | 2 37 13 14 115 50 21 4 . 7 . . . . 107 2 . . 67 5 10 31 14 . . . . . . . . . . . 118 . . . 70 Received Heat Transfer 2606 | . 207 9 . 135 720 522 339 9 18 12 . . . . 12 . . 108 45 18 . 27 . . . . 12 9 . . . 18 72 144 18 . 4 148 Effects 2 | . . . . . 2 . . . . . . . . . . . . . . . . . . . . . . . . . . . . . . . . . Interference 2 | . . . . . 2 . . . . . . . . . . . . . . . . . . . . . . . . . . . . . . . . . Siege Activations . | . . . . . . . . . . . . . . . . . . . . . . . . . . . . . . . . . . . . . . . Robots Corrupted . | . . . . . . . . . . . . . . . . . . . . . . . . . . . . . . . . . . . . . . . Combat Hostiles . | . . . . . . . . . . . . . . . . . . . . . . . . . . . . . . . . . . . . . . . Parts Fried 6 | . . . . . 3 1 . . . . . . . . . . . 2 . . . . . . . . . . . . . . . . . . . . Impact Corruptions . | . . . . . . . . . . . . . . . . . . . . . . . . . . . . . . . . . . . . . . . Robots Melted . | . . . . . . . . . . . . . . . . . . . . . . . . . . . . . . . . . . . . . . . Combat Hostiles . | . . . . . . . . . . . . . . . . . . . . . . . . . . . . . . . . . . . . . . . Parts Melted . | . . . . . . . . . . . . . . . . . . . . . . . . . . . . . . . . . . . . . . . Heat Transferred 2634 | 200 1501 37 . 185 461 150 . . . . . . . . . . . 100 . . . . . . . . . . . . . . . . . . . . Parts Sabotaged . | . . . . . . . . . . . . . . . . . . . . . . . . . . . . . . . . . . . . . . . Parts Stolen . | . . . . . . . . . . . . . . . . . . . . . . . . . . . . . . . . . . . . . . . Parts Stripped . | . . . . . . . . . . . . . . . . . . . . . . . . . . . . . . . . . . . . . . . Power Chain Reactions 8 | . . . . . 6 1 . . . . . . . . . . . 1 . . . . . . . . . . . . . . . . . . . . Missiles Intercepted . | . . . . . . . . . . . . . . . . . . . . . . . . . . . . . . . . . . . . . . . Alert | -11 -10 -10 -10 -9 -8 -8 -7 -7 -7 -7 -6 -6 -6 -6 -6 -6 -6 -6 -5 -5 -5 -5 -5 -5 -5 -4 -4 -4 -4 -4 -3 -3 -3 -3 -2 -2 -1 -1 ------- Run | Scr Mat Min Exi Min Mat Sto Fac Low Low Dat Pro Fac Was Fac Low Low Zio Dee Pro Fac Was Fac Upp Upp Zhi Pro Fac Upp Upp War Pro Res Qua Sec Res Tes Acc Com Peak Influence 5943 | 15 241 137 . 50 812 703 678 . . . . 61 12 31 . . . . . 498 174 954 . . . . 189 . . . . 460 312 1925 1246 1277 1244 5943 Average Influence 1334 | 6 127 116 . 35 363 452 408 . . . . 33 12 8 . . . . . 60 174 568 . . . . 114 . . . . 272 224 956 1194 873 929 4529 Maximum Alert Level 5 | . 1 . . . 3 3 2 . . . . . . . . . . . . 2 . 3 . . . . . . . . . 2 1 5 4 4 4 5 Low Security (%) 28 | . . . . . . . . . . . . . . . . . . . . . . . . . . . . . . . . . . . . . . . Level 1 17 | . . . . . . . . . . . . . . . . . . . . . . . . . . . . . . . . . . . . . . . Level 2 17 | . . . . . . . . . . . . . . . . . . . . . . . . . . . . . . . . . . . . . . . Level 3 8 | . . . . . . . . . . . . . . . . . . . . . . . . . . . . . . . . . . . . . . . Level 4 4 | . . . . . . . . . . . . . . . . . . . . . . . . . . . . . . . . . . . . . . . Level 5 1 | . . . . . . . . . . . . . . . . . . . . . . . . . . . . . . . . . . . . . . . High Security 20 | . . . . . . . . . . . . . . . . . . . . . . . . . . . . . . . . . . . . . . . Max Security 1 | . . . . . . . . . . . . . . . . . . . . . . . . . . . . . . . . . . . . . . . Squads Dispatched 125 | . 4 1 . . 10 5 10 . . . . 2 . 2 . . . . . 5 . 5 . . . . 4 . . . . 9 2 17 4 3 5 37 Investigation 28 | . 2 1 . . 1 . 4 . . . . 2 . 2 . . . . . 3 . 1 . . . . 3 . . . . 5 1 1 1 . 1 . Extermination 2 | . . . . . . . 1 . . . . . . . . . . . . . . . . . . . . . . . . . . . . . . 1 Reinforcement 21 | . 2 . . . 3 3 2 . . . . . . . . . . . . 2 . 3 . . . . 1 . . . . 3 1 1 . . . . Assault 53 | . . . . . 1 2 . . . . . . . . . . . . . . . 1 . . . . . . . . . . . 12 . . 1 36 Garrison 10 | . . . . . 5 . 3 . . . . . . . . . . . . . . . . . . . . . . . . 1 . 1 . . . . Intercept 11 | . . . . . . . . . . . . . . . . . . . . . . . . . . . . . . . . . . 2 3 3 3 . Construction Impeded 1 | . . . . . . . . . . . . . . . . . . . . . . 1 . . . . . . . . . . . . . . . . Haulers Reinforced 5 | . . . . . . . 1 . . . . . . . . . . . . . . 2 . . . . . . . . . 2 . . . . . . Stealth | -11 -10 -10 -10 -9 -8 -8 -7 -7 -7 -7 -6 -6 -6 -6 -6 -6 -6 -6 -5 -5 -5 -5 -5 -5 -5 -4 -4 -4 -4 -4 -3 -3 -3 -3 -2 -2 -1 -1 --------- Run | Scr Mat Min Exi Min Mat Sto Fac Low Low Dat Pro Fac Was Fac Low Low Zio Dee Pro Fac Was Fac Upp Upp Zhi Pro Fac Upp Upp War Pro Res Qua Sec Res Tes Acc Com Distress Signals 40 | . 2 . . . 5 3 2 . . . . 1 . . . . . . . 2 . 8 . . . . 1 . . . . . 1 7 1 1 1 5 Communications Jammed . | . . . . . . . . . . . . . . . . . . . . . . . . . . . . . . . . . . . . . . . Distress Signals . | . . . . . . . . . . . . . . . . . . . . . . . . . . . . . . . . . . . . . . . Times Spotted 936 | . 32 2 2 2 61 57 29 5 3 4 . 3 6 2 3 6 . 15 4 11 . 21 . 3 . . 17 8 . 2 10 11 31 138 12 4 16 416 Peak Tracking Total 100 | . 5 2 11 2 8 7 4 6 3 4 . 4 6 2 3 3 . 5 4 7 . 7 . 3 . . 9 6 . 1 9 3 14 61 5 4 6 100 Tactical Retreats 85 | . 2 . 1 . 3 3 9 . 1 . . 1 . . 2 1 . 4 . 1 . 3 . . . . . 1 . . 1 . 7 17 3 . 2 23 Traps | -11 -10 -10 -10 -9 -8 -8 -7 -7 -7 -7 -6 -6 -6 -6 -6 -6 -6 -6 -5 -5 -5 -5 -5 -5 -5 -4 -4 -4 -4 -4 -3 -3 -3 -3 -2 -2 -1 -1 ------- Run | Scr Mat Min Exi Min Mat Sto Fac Low Low Dat Pro Fac Was Fac Low Low Zio Dee Pro Fac Was Fac Upp Upp Zhi Pro Fac Upp Upp War Pro Res Qua Sec Res Tes Acc Com Traps Triggered 12 | . . . . . 1 3 3 . . . . 2 . 1 . . . . . 1 . . . . . . . . . . . 1 . . . . . . Indirectly 2 | . . . . . . 2 . . . . . . . . . . . . . . . . . . . . . . . . . . . . . . . . Trap Hack Attempts . | . . . . . . . . . . . . . . . . . . . . . . . . . . . . . . . . . . . . . . . Triggered . | . . . . . . . . . . . . . . . . . . . . . . . . . . . . . . . . . . . . . . . Disarmed 6 | . . . . . . . . . . . . . . . . . . . . . . . . . . . . . . . . . . . . 6 . . Reprogrammed . | . . . . . . . . . . . . . . . . . . . . . . . . . . . . . . . . . . . . . . . Reused . | . . . . . . . . . . . . . . . . . . . . . . . . . . . . . . . . . . . . . . . Traps Extracted . | . . . . . . . . . . . . . . . . . . . . . . . . . . . . . . . . . . . . . . . Installed . | . . . . . . . . . . . . . . . . . . . . . . . . . . . . . . . . . . . . . . . Triggered 14 | . . . . . . 1 . 2 1 . . . . . . . . . . . . . 1 . . . . . . 9 . . . . . . . . Machines | -11 -10 -10 -10 -9 -8 -8 -7 -7 -7 -7 -6 -6 -6 -6 -6 -6 -6 -6 -5 -5 -5 -5 -5 -5 -5 -4 -4 -4 -4 -4 -3 -3 -3 -3 -2 -2 -1 -1 ---------- Run | Scr Mat Min Exi Min Mat Sto Fac Low Low Dat Pro Fac Was Fac Low Low Zio Dee Pro Fac Was Fac Upp Upp Zhi Pro Fac Upp Upp War Pro Res Qua Sec Res Tes Acc Com Machines Disabled 34 | . 1 . 1 . 2 4 . . . . . . . . . . . 1 . . . 1 . . . . . . . . . . 2 11 . 6 1 4 Max in Single Turn 2 | . 1 . 1 . 1 1 . . . . . . . . . . . 1 . . . 1 . . . . . . . . . . 1 1 . 1 1 2 Garrison Access 10 | . . . . . 1 1 2 . . . . . . . . . . . . 1 . . . . . . . . . . . 1 1 . 1 . 2 . Phase Generator 1 | . . . . . . . . . . . . . . . . . . . . . . . . . . . . . . . . . . . . . . 1 Machines Sabotaged . | . . . . . . . . . . . . . . . . . . . . . . . . . . . . . . . . . . . . . . . Garrisons Compromised . | . . . . . . . . . . . . . . . . . . . . . . . . . . . . . . . . . . . . . . . Overloaded Fab Kills . | . . . . . . . . . . . . . . . . . . . . . . . . . . . . . . . . . . . . . . . Fab Network Shutdowns 2 | . . . . . . . . . . . . . . . . . . . . 1 . . . . . . . . . . . . . . . 1 . . Hacking | -11 -10 -10 -10 -9 -8 -8 -7 -7 -7 -7 -6 -6 -6 -6 -6 -6 -6 -6 -5 -5 -5 -5 -5 -5 -5 -4 -4 -4 -4 -4 -3 -3 -3 -3 -2 -2 -1 -1 --------- Run | Scr Mat Min Exi Min Mat Sto Fac Low Low Dat Pro Fac Was Fac Low Low Zio Dee Pro Fac Was Fac Upp Upp Zhi Pro Fac Upp Upp War Pro Res Qua Sec Res Tes Acc Com Machines Accessed 150 | . 4 1 2 . 7 13 8 . . 4 . 7 . 4 . 1 1 . . 13 . 12 3 . 5 . 10 1 . 4 . 5 11 11 4 6 8 5 Terminals 89 | . 4 1 . . 6 9 2 . . . . 5 . 3 . . . . . 8 . 6 . . . . 8 . . . . 2 9 10 2 4 5 5 Fabricators 13 | . . . . . . . . . . . . 1 . 1 . . . . . 2 . 3 . . . . 2 . . . . 1 . . . 2 1 . Repair Stations 9 | . . . . . . 1 2 . . . . 1 . . . . . . . 2 . 1 . . . . . . . . . 1 . 1 . . . . Recycling Units 3 | . . . . . . 2 . . . . . . . . . . . . . . . 1 . . . . . . . . . . . . . . . . Scanalyzers 4 | . . . . . . . 2 . . . . . . . . . . . . . . . . . . . . . . . . . 1 . 1 . . . Garrison Access 11 | . . . . . 1 1 2 . . . . . . . . . . . . 1 . 1 . . . . . . . . . 1 1 . 1 . 2 . Total Hacks 556 | . 14 4 2 . 18 43 27 . . 27 . 22 . 9 . 3 2 . . 54 . 58 5 . 18 . 48 1 . 8 . 27 50 49 12 21 26 8 Successful 432 | . 9 2 2 . 8 29 14 . . 27 . 17 . 5 . 3 2 . . 36 . 52 5 . 18 . 30 1 . 8 . 22 45 47 9 19 19 3 Failed 118 | . 4 1 . . 10 14 13 . . . . 4 . 4 . . . . . 18 . 5 . . . . 17 . . . . 5 4 2 3 2 7 5 Catastrophic 18 | . 1 . . . . . 1 . . . . . . 1 . . . . . 5 . . . . . . 5 . . . . 3 . . . . . 2 Database Lockouts 8 | . 1 1 . . . . . . . . . 2 . . . . . . . . . 1 . . . . 2 . . . . . 1 . . . . . Manual 304 | . 12 4 1 . 16 28 9 . . . . 10 . 5 . . 1 . . 31 . 40 . . . . 32 1 . 1 . 14 36 34 6 8 13 2 Terminals 343 | . 14 4 . . 16 30 9 . . . . 13 . 6 . . . . . 33 . 34 . . . . 34 . . . . 9 46 47 7 13 20 8 Fabricators 70 | . . . . . . . . . . . . 4 . 3 . . . . . 12 . 16 . . . . 14 . . . . 9 . . . 8 4 . Repair Stations 33 | . . . . . . 7 5 . . . . 5 . . . . . . . 8 . 2 . . . . . . . . . 4 . 2 . . . . Recycling Units 10 | . . . . . . 5 . . . . . . . . . . . . . . . 5 . . . . . . . . . . . . . . . . Scanalyzers 12 | . . . . . . . 6 . . . . . . . . . . . . . . . . . . . . . . . . . 3 . 3 . . . Garrison Access 22 | . . . . . 2 1 7 . . . . . . . . . . . . 1 . 1 . . . . . . . . . 5 1 . 2 . 2 . Terminal Hacks 214 | . 5 2 2 . 2 12 3 . . 27 . 8 . 3 . 3 2 . . 12 . 21 5 . 18 . 12 1 . 8 . 4 21 21 4 7 8 3 Record 26 | . . . 1 . . . . . . 11 . . . . . 3 . . . . . . 3 . 6 . . . . 1 . . 1 . . . . . Part Schematic 35 | . . . . . . . . . . 5 . 1 . 2 . . 2 . . 9 . 1 . . 4 . 5 . . . . 2 2 . . 1 1 . Robot Schematic 8 | . . . . . . . . . . 8 . . . . . . . . . . . . . . . . . . . . . . . . . . . . Robot Analysis 7 | . . . . . . . . . . . . . . . . . . . . . . . . . 4 . 1 . . . . . . 1 . 1 . . Prototype ID Bank 30 | . 4 1 . . . 1 . . . 3 . 1 . . . . . . . . . 10 . . 4 . . . . 5 . . 1 . . . . . Open Door 15 | . . . . . . 3 . . . . . . . . . . . . . . . 1 2 . . . . 1 . 2 . . 1 2 . . 3 . Level Access Points 2 | . . . . . . . . . . . . . . . . . . . . . . . . . . . . . . . . . 1 1 . . . . Branch Access Points 9 | . . . . . 1 . 1 . . . . 1 . 1 . . . . . 1 . 1 . . . . . . . . . 1 . . 1 . 1 . Emergency Access Points 5 | . . . . . . . 1 . . . . . . . . . . . . . . . . . . . 1 . . . . . 1 2 . . . . Machine Index 7 | . . . . . . . . . . . . 1 . . . . . . . 1 . 1 . . . . 1 . . . . 1 1 1 . . . . Terminal Index 5 | . . . . . . . . . . . . 1 . . . . . . . . . 1 . . . . . . . . . . 1 . . 1 . 1 Fabricator Index 3 | . . . . . . . . . . . . . . . . . . . . . . 1 . . . . . . . . . . . . 1 1 . . Scanalyzer Index 1 | . . . . . . . . . . . . . . . . . . . . . . . . . . . . . . . . . . . 1 . . . Garrison Index 1 | . . . . . . . . . . . . . . . . . . . . . . . . . . . . . . . . . . . . . 1 . Alert Level 4 | . . . . . . 1 . . . . . . . . . . . . . . . 1 . . . . . . . . . . 1 1 . . . . Unreport Threat 5 | . . . . . . 3 . . . . . . . . . . . . . . . . . . . . . . . . . . . 2 . . . . Locate Traps 13 | . . . . . . 2 . . . . . . . . . . . . . 1 . 1 . . . . 1 . . . . . 3 2 . 1 1 1 Disarm Traps 1 | . . . . . . . . . . . . . . . . . . . . . . . . . . . . . . . . . . . . 1 . . Recall Investigation 4 | . . 1 . . . . . . . . . . . . . . . . . . . 1 . . . . 1 . . . . . 1 . . . . . Recall Extermination 1 | . . . . . . . . . . . . . . . . . . . . . . . . . . . 1 . . . . . . . . . . . Recall Reinforcements 2 | . 1 . . . . 1 . . . . . . . . . . . . . . . . . . . . . . . . . . . . . . . . Hauler Manifests 9 | . . . . . 1 1 1 . . . . 1 . . . . . . . . . 1 . . . . . . . . . . 1 1 1 . 1 . Registered Components 5 | . . . . . . . . . . . . 1 . . . . . . . . . 1 . . . . . . . . . . 1 1 . . . 1 Registered Prototypes 3 | . . . . . . . . . . . . 1 . . . . . . . . . . . . . . . . . . . . 1 1 . . . . Zone Layout 11 | . . . . . . . . . . . . . . . . . . . . . . . . . . . 1 . . . . . 4 5 . 1 . . EX-Prototype ID Bank 1 | . . . 1 . . . . . . . . . . . . . . . . . . . . . . . . . . . . . . . . . . . Activate Exoskeleton 1 | . . . . . . . . . . . . . . . . . . . . . . . . . . . . . . . . . . 1 . . . . Fabricator Hacks 47 | . . . . . . . . . . . . 2 . 2 . . . . . 10 . 10 . . . . 8 . . . . 7 . . . 5 3 . Network Status 2 | . . . . . . . . . . . . . . . . . . . . 1 . 1 . . . . . . . . . . . . . . . . Load Schematic 18 | . . . . . . . . . . . . 1 . 1 . . . . . 4 . 3 . . . . 3 . . . . 3 . . . 2 1 . Build 27 | . . . . . . . . . . . . 1 . 1 . . . . . 5 . 6 . . . . 5 . . . . 4 . . . 3 2 . Repair Station Hacks 27 | . . . . . . 6 3 . . . . 4 . . . . . . . 6 . 2 . . . . . . . . . 4 . 2 . . . . Scan Component 14 | . . . . . . 3 2 . . . . 2 . . . . . . . 3 . 1 . . . . . . . . . 2 . 1 . . . . Repair 13 | . . . . . . 3 1 . . . . 2 . . . . . . . 3 . 1 . . . . . . . . . 2 . 1 . . . . Recycling Unit Hacks 1 | . . . . . . . . . . . . . . . . . . . . . . 1 . . . . . . . . . . . . . . . . Report Inventory 1 | . . . . . . . . . . . . . . . . . . . . . . 1 . . . . . . . . . . . . . . . . Scanalyzer 10 | . . . . . . . 4 . . . . . . . . . . . . . . . . . . . . . . . . . 3 . 3 . . . Insert Component 8 | . . . . . . . 2 . . . . . . . . . . . . . . . . . . . . . . . . . 3 . 3 . . . Analyze 2 | . . . . . . . 2 . . . . . . . . . . . . . . . . . . . . . . . . . . . . . . . Garrison Access Hacks 7 | . . . . . 1 1 . . . . . . . . . . . . . 1 . . . . . . . . . . . 1 1 . 1 . 1 . Seal Access 7 | . . . . . 1 1 . . . . . . . . . . . . . 1 . . . . . . . . . . . 1 1 . 1 . 1 . Unauthorized Hacks 270 | . 8 . . . 13 25 11 . . . . 6 . 1 . . . . . 14 . 36 . . . . 21 . . . . 13 41 48 2 14 16 1 Terminals 96 | . 4 . . . 5 7 2 . . . . 2 . . . . . . . 5 . 7 . . . . 8 . . . . 1 20 24 1 4 6 . Track 14 | . . . . . . . . . . . . . . . . . . . . . . . . . . . 1 . . . . . 4 7 . 1 1 . Assimilate 14 | . 2 . . . . . . . . . . . . . . . . . . 2 . 2 . . . . 5 . . . . . 2 1 . . . . Botnet 35 | . . . . . 2 4 2 . . . . 2 . . . . . . . 3 . 4 . . . . 2 . . . . 1 5 6 . 2 2 . Detonate 1 | . . . . . . . . . . . . . . . . . . . . . . . . . . . . . . . . . 1 . . . . . Disrupt 23 | . 1 . . . 2 3 . . . . . . . . . . . . . . . . . . . . . . . . . . 6 7 1 . 3 . Operators 9 | . 1 . . . 1 . . . . . . . . . . . . . . . . 1 . . . . . . . . . . 2 3 . 1 . . Fabricators 17 | . . . . . . . . . . . . 1 . . . . . . . 2 . 6 . . . . 2 . . . . 2 . . . 3 1 . Report 2 | . . . . . . . . . . . . . . . . . . . . 1 . 1 . . . . . . . . . . . . . . . . Prioritize 4 | . . . . . . . . . . . . . . . . . . . . . . 2 . . . . . . . . . 1 . . . 1 . . Siphon 11 | . . . . . . . . . . . . 1 . . . . . . . 1 . 3 . . . . 2 . . . . 1 . . . 2 1 . Repair Stations . | . . . . . . . . . . . . . . . . . . . . . . . . . . . . . . . . . . . . . . . Recycling Units 7 | . . . . . . 3 . . . . . . . . . . . . . . . 4 . . . . . . . . . . . . . . . . Monitor 1 | . . . . . . . . . . . . . . . . . . . . . . 1 . . . . . . . . . . . . . . . . Reject 2 | . . . . . . 1 . . . . . . . . . . . . . . . 1 . . . . . . . . . . . . . . . . Recyclers 1 | . . . . . . . . . . . . . . . . . . . . . . 1 . . . . . . . . . . . . . . . . Mask 3 | . . . . . . 2 . . . . . . . . . . . . . . . 1 . . . . . . . . . . . . . . . . Scanalyzers . | . . . . . . . . . . . . . . . . . . . . . . . . . . . . . . . . . . . . . . . Garrison Access 6 | . . . . . . . 2 . . . . . . . . . . . . . . 1 . . . . . . . . . 3 . . . . . . Reprogram 4 | . . . . . . . . . . . . . . . . . . . . . . 1 . . . . . . . . . 3 . . . . . . Jam 2 | . . . . . . . 2 . . . . . . . . . . . . . . . . . . . . . . . . . . . . . . . Data Cores Recovered 3 | . . . . . . 1 . . . . . . . . . . . . . . . 1 . . . . . . . . . . . . . . . 1 Used 2 | . . . . . . . . . . . . . . . . . . . . . . 1 . . . . . . . . . . . . . . . 1 Hacking Detections 106 | . 3 1 . . 4 10 6 . . . . 7 . 4 . . . . . 12 . 10 . . . . 9 . . . . 5 7 7 4 6 6 5 Full Trace Events 15 | . 1 . . . . . 1 . . . . 1 . 1 . . . . . 3 . . . . . . 2 . . . . 3 . 1 1 . 1 . Feedback Events 8 | . . . . . . . . . . . . . . 2 . . . . . 1 . . . . . . 1 . . . . 4 . . . . . . Corruption 2 | . . . . . . . . . . . . . . 1 . . . . . . . . . . . . . . . . . 1 . . . . . . Hackware Fried 6 | . . . . . . . . . . . . . . 1 . . . . . 1 . . . . . . 1 . . . . 3 . . . . . . Feedback Blocked . | . . . . . . . . . . . . . . . . . . . . . . . . . . . . . . . . . . . . . . . Robot Schematics Acquired 8 | . . . . . . . . . . 8 . . . . . . . . . . . . . . . . . . . . . . . . . . . . Robots Built . | . . . . . . . . . . . . . . . . . . . . . . . . . . . . . . . . . . . . . . . Matter . | . . . . . . . . . . . . . . . . . . . . . . . . . . . . . . . . . . . . . . . Time . | . . . . . . . . . . . . . . . . . . . . . . . . . . . . . . . . . . . . . . . Total Robot Build Rating . | . . . . . . . . . . . . . . . . . . . . . . . . . . . . . . . . . . . . . . . Part Schematics Acquired 37 | . . . . . . . 2 . . 5 . 1 . 2 . . 2 . . 9 . 1 . . 4 . 5 . . . . 2 2 . . 1 1 . Parts Built 24 | . . . . . . . . . . . . 1 . 1 . . . . . 6 . 5 . . . . 4 . . . . 3 . . . 2 2 . Matter 4831 | . . . . . . . . . . . . 238 . 190 . . . . . 902 . 669 . . . . 657 . . . . 813 . . . 738 624 . Time 1835 | . . . . . . . . . . . . 84 . 47 . . . . . 288 . 276 . . . . 188 . . . . 391 . . . 339 222 . Total Part Build Rating 154 | . . . . . . . . . . . . 6 . 5 . . . . . 35 . 34 . . . . 20 . . . . 22 . . . 14 18 . Parts Repaired 13 | . . . . . . 3 1 . . . . 2 . . . . . . . 3 . 1 . . . . . . . . . 2 . 1 . . . . Time 524 | . . . . . . 136 50 . . . . 55 . . . . . . . 159 . 37 . . . . . . . . . 47 . 40 . . . . Parts Recycled . | . . . . . . . . . . . . . . . . . . . . . . . . . . . . . . . . . . . . . . . Recycled Matter . | . . . . . . . . . . . . . . . . . . . . . . . . . . . . . . . . . . . . . . . Retrieved Matter . | . . . . . . . . . . . . . . . . . . . . . . . . . . . . . . . . . . . . . . . Retrieved Components . | . . . . . . . . . . . . . . . . . . . . . . . . . . . . . . . . . . . . . . . Parts Scanalyzed 2 | . . . . . . . 2 . . . . . . . . . . . . . . . . . . . . . . . . . . . . . . . Part Schematics Acquired 2 | . . . . . . . 2 . . . . . . . . . . . . . . . . . . . . . . . . . . . . . . . Parts Damaged . | . . . . . . . . . . . . . . . . . . . . . . . . . . . . . . . . . . . . . . . Bothacking | -11 -10 -10 -10 -9 -8 -8 -7 -7 -7 -7 -6 -6 -6 -6 -6 -6 -6 -6 -5 -5 -5 -5 -5 -5 -5 -4 -4 -4 -4 -4 -3 -3 -3 -3 -2 -2 -1 -1 ------------ Run | Scr Mat Min Exi Min Mat Sto Fac Low Low Dat Pro Fac Was Fac Low Low Zio Dee Pro Fac Was Fac Upp Upp Zhi Pro Fac Upp Upp War Pro Res Qua Sec Res Tes Acc Com Used RIF Installer . | . . . . . . . . . . . . . . . . . . . . . . . . . . . . . . . . . . . . . . . Robots Hacked . | . . . . . . . . . . . . . . . . . . . . . . . . . . . . . . . . . . . . . . . Non-combat . | . . . . . . . . . . . . . . . . . . . . . . . . . . . . . . . . . . . . . . . Combat . | . . . . . . . . . . . . . . . . . . . . . . . . . . . . . . . . . . . . . . . Robot Hacks Applied . | . . . . . . . . . . . . . . . . . . . . . . . . . . . . . . . . . . . . . . . Relay Couplers Released . | . . . . . . . . . . . . . . . . . . . . . . . . . . . . . . . . . . . . . . . Robots Rewired . | . . . . . . . . . . . . . . . . . . . . . . . . . . . . . . . . . . . . . . . Allies Hacked 2 | . . . . . . . . . . . . . . . . . . . . . . . . . . 2 . . . . . . . . . . . . Hacks Repelled . | . . . . . . . . . . . . . . . . . . . . . . . . . . . . . . . . . . . . . . . Allies | -11 -10 -10 -10 -9 -8 -8 -7 -7 -7 -7 -6 -6 -6 -6 -6 -6 -6 -6 -5 -5 -5 -5 -5 -5 -5 -4 -4 -4 -4 -4 -3 -3 -3 -3 -2 -2 -1 -1 -------- Run | Scr Mat Min Exi Min Mat Sto Fac Low Low Dat Pro Fac Was Fac Low Low Zio Dee Pro Fac Was Fac Upp Upp Zhi Pro Fac Upp Upp War Pro Res Qua Sec Res Tes Acc Com Total Allies 49 | . 2 2 . . . 2 . . . . . . . . . . 6 . . . 20 1 2 . . . 4 . . . . 8 1 1 . . . . Largest Group 20 | . 1 2 2 . . 2 1 . . . . . . . . . 6 6 . . 20 20 10 7 6 6 3 . . . . 8 1 1 . . . . Highest-Rated Group 1075 | . 10 39 39 . . 62 31 . . . . . . . . . 290 290 . . 785 773 361 255 209 209 80 . . . . 394 26 1075 . . . . Highest-Rated Ally 1075 | . 10 31 31 . . 31 31 . . . . . . . . . 94 94 . . 50 50 46 46 46 46 44 . . . . 56 26 1075 . . . . Total Orders 3 | . . . . . . . . . . . . . . . . . . . . . . . . . . . 3 . . . . . . . . . . . GOTO 2 | . . . . . . . . . . . . . . . . . . . . . . . . . . . 2 . . . . . . . . . . . EXPLORE 1 | . . . . . . . . . . . . . . . . . . . . . . . . . . . 1 . . . . . . . . . . . Ally Attacks 365 | . . 4 . . . 22 2 . . . . . . . . . . 62 . . . 132 16 29 . 1 . . . . . 77 . 20 . . . . Total Damage 8927 | . . 64 . . . 299 41 . . . . . . . . . . 1214 . . . 3516 331 657 . 13 . . . . . 1499 . 1293 . . . . Kills 59 | . . 1 . . . 5 1 . . . . . . . . . . 12 . . . 24 1 3 . . . . . . . 7 . 5 . . . . Allies Corrupted 4 | . . . . . . . . . . . . . . . . . . . . . . 3 . . . 1 . . . . . . . . . . . . Allies Melted 1 | . . . . . . . . . . . . . . . . . . 1 . . . . . . . . . . . . . . . . . . . . Intel | -11 -10 -10 -10 -9 -8 -8 -7 -7 -7 -7 -6 -6 -6 -6 -6 -6 -6 -6 -5 -5 -5 -5 -5 -5 -5 -4 -4 -4 -4 -4 -3 -3 -3 -3 -2 -2 -1 -1 ------- Run | Scr Mat Min Exi Min Mat Sto Fac Low Low Dat Pro Fac Was Fac Low Low Zio Dee Pro Fac Was Fac Upp Upp Zhi Pro Fac Upp Upp War Pro Res Qua Sec Res Tes Acc Com Robot Analysis Total 7 | . . . . . . . . . . . . . . . . . . . . . . . . . 4 . 1 . . . . . . 1 . 1 . . Derelict Logs Recovered 17 | . . . . 1 . . . 1 1 . 1 . . . 1 2 . . 2 . . . 2 2 . 2 . 1 1 . . . . . . . . . Drone Launches 2 | . . . . . . . . . . . . . . . . . . . . . . . . . . . 2 . . . . . . . . . . . Drone Recoveries . | . . . . . . . . . . . . . . . . . . . . . . . . . . . . . . . . . . . . . . . Exploration | -11 -10 -10 -10 -9 -8 -8 -7 -7 -7 -7 -6 -6 -6 -6 -6 -6 -6 -6 -5 -5 -5 -5 -5 -5 -5 -4 -4 -4 -4 -4 -3 -3 -3 -3 -2 -2 -1 -1 ------------- Run | Scr Mat Min Exi Min Mat Sto Fac Low Low Dat Pro Fac Was Fac Low Low Zio Dee Pro Fac Was Fac Upp Upp Zhi Pro Fac Upp Upp War Pro Res Qua Sec Res Tes Acc Com Turns Passed 18489 | 98 778 369 986 126 1340 2023 1397 115 108 29 70 471 17 208 109 126 419 563 101 708 112 403 249 257 142 148 458 100 60 348 88 800 224 421 387 243 453 3435 Spaces Moved 22475 | 53 453 281 461 64 618 695 787 333 303 86 217 833 71 362 302 315 1036 1068 284 821 254 843 559 320 174 436 817 295 228 695 233 890 634 990 974 432 526 3732 Core . | . . . . . . . . . . . . . . . . . . . . . . . . . . . . . . . . . . . . . . . Treads 1515 | . . 45 248 . 42 695 485 . . . . . . . . . . . . . . . . . . . . . . . . . . . . . . . Legs 950 | 53 44 . 213 64 576 . . . . . . . . . . . . . . . . . . . . . . . . . . . . . . . . . Wheels 645 | . 409 236 . . . . . . . . . . . . . . . . . . . . . . . . . . . . . . . . . . . . Hover . | . . . . . . . . . . . . . . . . . . . . . . . . . . . . . . . . . . . . . . . Flight 19365 | . . . . . . . 302 333 303 86 217 833 71 362 302 315 1036 1068 284 821 254 843 559 320 174 436 817 295 228 695 233 890 634 990 974 432 526 3732 Fastest Speed 12 | 120 90 110 85 85 85 200 26 26 26 26 26 23 23 26 26 26 26 23 23 21 21 24 27 24 24 24 22 26 26 26 26 26 25 25 28 23 14 12 Average Speed 42 | 120 100 121 153 127 133 200 124 26 26 26 26 25 23 26 26 26 26 23 23 22 24 24 27 26 24 24 25 26 26 26 26 26 27 27 29 27 24 23 Slowest Speed 210 | 120 120 180 180 130 210 200 200 26 26 26 26 26 23 26 26 26 26 26 23 23 29 27 27 27 27 24 26 26 26 26 26 26 28 105 105 117 87 35 Overloaded Moves 386 | . . . 36 4 15 . . . . . . . . . . . . . . . . . . . . . . . . . . . 43 158 . 9 63 58 Propulsion Burnouts . | . . . . . . . . . . . . . . . . . . . . . . . . . . . . . . . . . . . . . . . Robots Hopped 134 | . . . . . . . 2 2 1 2 . 4 . 1 1 2 . 1 . 12 1 11 2 . . . 10 . 1 4 1 9 6 11 20 4 3 23 Cave-ins Triggered . | . . . . . . . . . . . . . . . . . . . . . . . . . . . . . . . . . . . . . . . Exploration Rate (%) 52 | 4 59 75 70 23 44 93 21 68 61 76 49 24 85 10 54 52 85 82 51 25 95 17 80 57 59 57 30 60 46 95 49 12 80 77 25 36 16 57 Regions Visited 38 Branch Regions 25 Pre-discovered Areas 13 | . . . 1 . . . . . . 1 . . . . . 1 4 . 1 . . . . 1 3 . . . 1 . . . . . . . . . Known Exits Taken 28 | . . . . . 1 . 1 1 1 1 1 . . 1 1 1 1 1 1 . . 1 1 1 1 1 1 1 1 1 1 1 1 1 1 1 1 . Unknown Exits Taken 6 | 1 1 1 1 1 . 1 . . . . . . . . . . . . . . . . . . . . . . . . . . . . . . . . Scrap Searched 22 | . . 1 . . . . . . 1 . 1 . . . 2 1 3 . 2 . . . 2 2 . 2 . 2 . . 3 . . . . . . . Spaces Dug 232 | . . . . . . . 9 8 3 . 3 20 . 6 6 8 3 9 6 24 . 13 7 1 . 5 13 7 . 6 9 19 11 25 3 6 . 2 Terrain Destroyed 340 | . . . . . 18 8 9 8 3 . 3 20 . 6 6 8 3 19 6 24 . 13 7 1 . 5 13 7 . 6 9 19 11 25 3 6 . 74 Melee 232 | . . . . . . . 9 8 3 . 3 20 . 6 6 8 3 9 6 24 . 13 7 1 . 5 13 7 . 6 9 19 11 25 3 6 . 2 Projectile 4 | . . . . . . 4 . . . . . . . . . . . . . . . . . . . . . . . . . . . . . . . . AOE 104 | . . . . . 18 4 . . . . . . . . . . . 10 . . . . . . . . . . . . . . . . . . . 72 Actions | -11 -10 -10 -10 -9 -8 -8 -7 -7 -7 -7 -6 -6 -6 -6 -6 -6 -6 -6 -5 -5 -5 -5 -5 -5 -5 -4 -4 -4 -4 -4 -3 -3 -3 -3 -2 -2 -1 -1 --------- Run | Scr Mat Min Exi Min Mat Sto Fac Low Low Dat Pro Fac Was Fac Low Low Zio Dee Pro Fac Was Fac Upp Upp Zhi Pro Fac Upp Upp War Pro Res Qua Sec Res Tes Acc Com Total 29482 | 69 644 308 725 87 937 1145 1099 344 325 88 225 1026 70 463 321 344 1171 1329 309 1285 303 977 643 488 267 471 1030 305 226 851 245 1393 659 1049 1031 510 824 5896 Wait 5013 | 6 83 21 236 6 106 245 158 6 21 4 4 142 . 94 15 24 122 201 17 412 36 95 80 168 79 31 177 3 . 129 5 444 . 8 37 44 217 1537 Move 22187 | 52 452 280 460 63 617 694 782 329 300 81 216 825 70 359 299 311 1035 1065 283 800 251 820 554 319 173 435 796 294 225 688 230 871 621 970 935 424 519 3689 Hop 118 | . . . . . . . 2 1 1 2 . 4 . 1 1 1 . 1 . 9 1 11 2 . . . 10 . 1 2 1 8 6 9 18 3 3 20 Pick Up 178 | . 20 2 4 1 27 18 9 . . . 1 8 . . . . 1 5 . 8 3 5 . . 1 . 10 . . 7 . 4 5 4 7 3 6 19 Fast Attach 90 | 1 2 . 2 . 9 7 4 . . . . 2 . 1 . . 1 4 1 5 3 2 . . 4 . . . . 3 . 3 2 11 4 4 2 13 Attach 105 | . 2 . . 1 9 2 15 . . . . 3 . . . . 1 5 . 5 2 . . . . . 4 . . 3 . 5 2 2 7 3 11 23 Detach 24 | . . . 2 . 3 1 . . . . . . . . . . . 2 . 1 . . . . . . 1 . . 1 . . . 2 2 1 2 6 Swap 74 | . 6 2 1 . 6 21 4 . . . . 2 . 2 . . . 5 1 1 . 3 . . 1 . 3 . . 2 . 1 4 . 3 . 5 1 Drop 225 | . 10 2 4 1 25 24 38 . . . 1 6 . . . . 2 8 1 9 6 8 . . 5 . 7 . . 10 . 1 6 3 6 7 8 27 Fire 1015 | 10 69 1 16 15 133 124 61 . . . . . . . . . . 6 . . . . . . . . . . . . . . . . . . 50 530 Melee 413 | . . . . . . 3 19 8 3 1 3 34 . 6 6 8 9 27 6 35 1 33 7 1 4 5 21 8 . 6 9 36 13 37 12 21 1 30 Ram . | . . . . . . . . . . . . . . . . . . . . . . . . . . . . . . . . . . . . . . . Kick . | . . . . . . . . . . . . . . . . . . . . . . . . . . . . . . . . . . . . . . . Crush 13 | . . . . . 2 6 5 . . . . . . . . . . . . . . . . . . . . . . . . . . . . . . . Escape Stasis 26 | . . . . . . . 2 . . . . . . . . . . . . . . . . . . . . . . . . 20 . 3 . . . 1 Rewire . | . . . . . . . . . . . . . . . . . . . . . . . . . . . . . . . . . . . . . . . Trap . | . . . . . . . . . . . . . . . . . . . . . . . . . . . . . . . . . . . . . . . Miscellaneous 1 | . . . . . . . . . . . . . . . . . . . . . . . . . . . 1 . . . . . . . . . . . Route ------- -11/Scrapyard -10/Materials (discovered 2 exits: [*Mat] / *Min) -10/Mines (discovered 2 exits: [*Mat] / *Exi) -10/Exiles -9/Mines -8/Materials -8/Storage -7/Factory (discovered 3 exits: *Fac / *Low x2) -7/Lower Caves -7/Lower Caves (discovered 2 exits: *Fac / *Dat) -7/Data Miner -6/Proximity Caves -6/Factory (discovered 2 exits: *Low x2) -6/Waste -6/Factory (discovered 2 exits: *Low x2) -6/Lower Caves -6/Lower Caves -6/Zion (discovered 2 exits: *Dee / [*Pro]) -6/Deep Caves -5/Proximity Caves -5/Factory (discovered 6 exits: *Fac x2 / Upp x2 / Ext x2) -5/Waste -5/Factory (discovered 4 exits: *Upp x2 / *Ext x2) -5/Upper Caves -5/Upper Caves (discovered 2 exits: *Fac / *Zhi) -5/Zhirov -4/Proximity Caves -4/Factory -4/Upper Caves -4/Upper Caves -4/Warlord -3/Proximity Caves -3/Research (discovered 4 exits: Res / Arm / *Qua x2) -3/Quarantine (discovered 2 exits: Res / *Sec) -3/Section 7 -2/Research (discovered 3 exits: *Acc / *Tes x2) -2/Testing -1/Access -1/Command History --------- Turn | Location | Event 7 | -11/Scrapyard | Discovered new exit (range 3) 99 | -11/Scrapyard | Entered Materials 129 | -10/Materials | Discovered new exit (range 16) 302 | -10/Materials | Build established: Mutant 700 | -10/Materials | Discovered new exit (range 5) 748 | -10/Materials | Central database locked down 877 | -10/Materials | Entered Mines 1032 | -10/Mines | Central database locked down 1152 | -10/Mines | Discovered new exit (range 11) 1157 | -10/Mines | Found a damaged Exp. Sensor Array with a note attached 1164 | -10/Mines | Found Prototype Device 1237 | -10/Mines | Deemed a non-threat by the Exiles lab entrance 1237 | -10/Mines | Discovered new exit (range 5) 1246 | -10/Mines | Entered Exiles 1246 | -10/Exiles | Accompanied by 2 allies 1276 | -10/Exiles | Led the pair of lost Derelicts to a safe place 1291 | -10/Exiles | Met 8R-AWN 1320 | -10/Exiles | Met EX-HEX 1407 | -10/Exiles | Met EX-DEC 1439 | -10/Exiles | Learned location of Zion (-6) 1616 | -10/Exiles | Met EX-BIN 1642 | -10/Exiles | Aligned with FarCom system 1643 | -10/Exiles | Given EX-Vault access code 1685 | -10/Exiles | Opened EX-Vault 1694 | -10/Exiles | Found AWS/Thermal 1700 | -10/Exiles | Found Potential Leg 1704 | -10/Exiles | Found Potential Leg 1733 | -10/Exiles | Warned to stay clear of 0b10 Research branches 1801 | -10/Exiles | Build established: Hauler-Mutant 2201 | -10/Exiles | Attacked by the Exiles 2225 | -10/Exiles | Discovered new exit (range 10) 2232 | -10/Exiles | Stole two prototypes: Potential Leg, AWS/Thermal 2232 | -10/Exiles | Entered Mines 2256 | -9/Mines | Core integrity fell below 50% 2316 | -9/Mines | Learned Materials stockpile data 2341 | -9/Mines | Discovered new exit (range 14) 2358 | -9/Mines | Entered Materials 2358 | -8/Materials | Evolved 4 slots: Utility x4 2684 | -8/Materials | Garrison activated, responded to threat 2994 | -8/Materials | Garrison activated, responded to threat 3158 | -8/Materials | First assault squad dispatched 3305 | -8/Materials | Discovered new exit (range 5) 3596 | -8/Materials | Identified exit to Storage 3698 | -8/Materials | Entered Storage 4383 | -8/Storage | Core integrity fell below 50% 4460 | -8/Storage | Discovered new exit (range 5) 4653 | -8/Storage | Repaired Reflective Plating 5293 | -8/Storage | Met a pair of Derelict thieves 5620 | -8/Storage | Repaired Enh. Autogun 5660 | -8/Storage | Repaired Reflective Plating 5721 | -8/Storage | Entered Factory 5721 | -7/Factory | Accompanied by 1 ally 5721 | -7/Factory | Evolved 2 slots: Propulsion x2 6143 | -7/Factory | Discovered new exit (range 3) 6158 | -7/Factory | Identified exit to Factory 6201 | -7/Factory | Identified exit to Lower Caves 6432 | -7/Factory | Repaired Lgt. Angular Momentum Engine 6479 | -7/Factory | Garrison activated, responded to threat 6967 | -7/Factory | Identified Exp. Sensor Array 7118 | -7/Factory | Entered Lower Caves 7158 | -7/Lower Caves | Learned location of 1 exit from Proximity Caves 7231 | -7/Lower Caves | Discovered new exit (range 11) 7233 | -7/Lower Caves | Identified exit to Lower Caves 7233 | -7/Lower Caves | Entered another Lower Caves area 7247 | -7/Lower Caves | Discovered exit to Factory (range 5) 7339 | -7/Lower Caves | Discovered new exit (range 11) 7341 | -7/Lower Caves | Identified exit to Data Miner 7341 | -7/Lower Caves | Entered Data Miner 7341 | -7/Data Miner | Discovered new exit (range 6) 7343 | -7/Data Miner | Identified exit to Proximity Caves 7346 | -7/Data Miner | Met Data Miner 7351 | -7/Data Miner | Learned location of Section 7 (-3) 7351 | -7/Data Miner | Acquired the access code to Warlord's prototype stash 7355 | -7/Data Miner | Received God Mode back door access code from Data Miner 7370 | -7/Data Miner | Entered Proximity Caves 7380 | -6/Proximity Caves | Learned Factory emergency access door positions 7400 | -6/Proximity Caves | Spotted B-75 Beast 7440 | -6/Proximity Caves | Entered Factory 7440 | -6/Factory | Evolved 2 slots: Utility x2 7463 | -6/Factory | Central database locked down 7511 | -6/Factory | Identified exit to Lower Caves 7579 | -6/Factory | Fabricated Exp. Cesium-ion Thruster? 7707 | -6/Factory | Repaired Imp. VTOL Module 7733 | -6/Factory | Repaired Lgt. Angular Momentum Engine 7911 | -6/Factory | Manually triggered Chute Trap 7911 | -6/Factory | Sucked down chute 7911 | -6/Factory | Entered Waste 7916 | -6/Waste | Spotted C-40 Crusher 7916 | -6/Waste | Spotted C-40 Crusher 7916 | -6/Waste | Spotted C-40 Crusher 7917 | -6/Waste | Spotted C-40 Crusher 7923 | -6/Waste | Spotted C-40 Crusher 7923 | -6/Waste | Spotted C-40 Crusher 7924 | -6/Waste | Discovered new exit (range 14) 7926 | -6/Waste | EMP discharged 7926 | -6/Waste | System corruption reached 10% 7927 | -6/Waste | Identified exit to Factory 7928 | -6/Waste | Entered Factory 7980 | -6/Factory | Hacking Suite fried by hacking feedback 8006 | -6/Factory | Build established: Hacker-Sprinter 8027 | -6/Factory | Fabricated Imp. System Shield? 8136 | -6/Factory | Entered Lower Caves 8241 | -6/Lower Caves | Discovered new exit (range 12) 8245 | -6/Lower Caves | Identified exit to Lower Caves 8245 | -6/Lower Caves | Entered another Lower Caves area 8250 | -6/Lower Caves | Learned location of Extension (-5) 8253 | -6/Lower Caves | Learned Factory security intel 8255 | -6/Lower Caves | Learned location of 1 exit from Factory 8295 | -6/Lower Caves | Encountered a Warlord checkpoint 8369 | -6/Lower Caves | Discovered new exit (range 9) 8371 | -6/Lower Caves | Identified exit to Zion 8371 | -6/Lower Caves | Entered Zion 8382 | -6/Zion | System corruption cleaned by Quarantine Array 8400 | -6/Zion | Discovered new exit (range 9) 8405 | -6/Zion | Given A8's code to call for help 8416 | -6/Zion | Learned location of Quarantine (-3) 8418 | -6/Zion | Learned location of Warlord (-4) 8439 | -6/Zion | Gained Derelict followers 8472 | -6/Zion | Received a visual enhancement algorithm 8519 | -6/Zion | Learned location of Armory (-3) 8634 | -6/Zion | Discovered new exit (range 3) 8636 | -6/Zion | Identified exit to Deep Caves 8636 | -6/Zion | Saw the warning signs outside the Deep Caves entrance 8644 | -6/Zion | Enhanced Grunt warped into view, answering call for help 8645 | -6/Zion | Enhanced Grunt warped into view, answering call for help 8790 | -6/Zion | Entered Deep Caves 8790 | -6/Deep Caves | Accompanied by 6 allies 8916 | -6/Deep Caves | Attacked by Z-Imprinter 8926 | -6/Deep Caves | Allies destroyed Z-Imprinter 9010 | -6/Deep Caves | Found Prototype Protection 9012 | -6/Deep Caves | Identified Zio. Weapon Casing 9047 | -6/Deep Caves | Z-Facility disabled 9172 | -6/Deep Caves | Lost 3 parts (1p2u) 9264 | -6/Deep Caves | Discovered new exit (range 6) 9352 | -6/Deep Caves | Identified exit to Proximity Caves 9353 | -6/Deep Caves | Entered Proximity Caves 9420 | -5/Proximity Caves | Learned 8 Factory zone layouts 9441 | -5/Proximity Caves | Discovered new exit (range 11) 9443 | -5/Proximity Caves | Identified exit to Factory 9454 | -5/Proximity Caves | Entered Factory 9454 | -5/Factory | Evolved 2 slots: Propulsion x1, Utility x1 9455 | -5/Factory | Identified exit to Upper Caves 9456 | -5/Factory | Identified exit to Extension 9457 | -5/Factory | Identified exit to Factory 9510 | -5/Factory | Found Prototype Processor 9511 | -5/Factory | Found Prototype Processor 9563 | -5/Factory | Repaired Imp. Utility Shielding 9656 | -5/Factory | Repaired Exp. Sensor Array 9717 | -5/Factory | Repaired Imp. VTOL Module 9778 | -5/Factory | Found Prototype Device 9778 | -5/Factory | Identified Exp. Terrain Scanner 9827 | -5/Factory | Discovered exit to Factory (range 4) 9877 | -5/Factory | Fabricated Adv. Hacking Suite (x1) 9956 | -5/Factory | Fabricated Exp. Utility Shielding (x1) 10010 | -5/Factory | Fabricated Adv. System Shield (x1) 10063 | -5/Factory | Fabricated Adv. System Shield (x1) 10065 | -5/Factory | Imp. System Shield fried by hacking feedback 10134 | -5/Factory | Fabricated Nuclear Pulse Array? 10142 | -5/Factory | Local fabrication network quarantined 10162 | -5/Factory | Sucked down chute 10162 | -5/Factory | Entered Waste 10163 | -5/Waste | Joined by Warlord forces that had cleared the area 10227 | -5/Waste | Discovered new exit (range 14) 10245 | -5/Waste | Identified exit to Factory 10274 | -5/Waste | Entered Factory 10274 | -5/Factory | Accompanied by 19 allies 10348 | -5/Factory | Central database locked down 10367 | -5/Factory | Repaired Adv. Reaction Control System 10508 | -5/Factory | Fabricated Adv. Hacking Suite? 10511 | -5/Factory | Fabricated Adv. Hacking Suite? 10568 | -5/Factory | Fabricated Adv. Hacking Suite? 10574 | -5/Factory | First assault squad dispatched 10603 | -5/Factory | Fabricated Adv. Force Field (x2) 10677 | -5/Factory | Entered Upper Caves 10677 | -5/Upper Caves | Accompanied by 8 allies 10695 | -5/Upper Caves | Identified exit to Upper Caves 10748 | -5/Upper Caves | A Commander dispatched an escort 10751 | -5/Upper Caves | Learned location of 1 exit from Research 10751 | -5/Upper Caves | Learned Armory trap positions 10751 | -5/Upper Caves | Learned Extension garrison access intel 10810 | -5/Upper Caves | Learned Factory stockpile data 10926 | -5/Upper Caves | Entered another Upper Caves area 10926 | -5/Upper Caves | Accompanied by 9 allies 10927 | -5/Upper Caves | Commander's escort returned to base 10927 | -5/Upper Caves | Commander's escort returned to base 10936 | -5/Upper Caves | Discovered exit to Factory (range 5) 11028 | -5/Upper Caves | Discovered new exit (range 7) 11030 | -5/Upper Caves | Identified exit to Zhirov 11183 | -5/Upper Caves | Entered Zhirov 11183 | -5/Zhirov | Accompanied by 6 allies 11183 | -5/Zhirov | Discovered new exit (range 3) 11188 | -5/Zhirov | Met Zhirov 11192 | -5/Zhirov | Learned location of Testing (-2) 11192 | -5/Zhirov | Learned location of Command (-1) 11194 | -5/Zhirov | Zhirov requested help retrieving the SGEMP Prototype 11199 | -5/Zhirov | Found Alien Artifact 11199 | -5/Zhirov | Identified Integrated Dissipator 11199 | -5/Zhirov | Installed Integrated Dissipator, increased core heat dissipation (+2%) 11266 | -5/Zhirov | Identified exit to Proximity Caves 11325 | -5/Zhirov | Entered Proximity Caves 11325 | -4/Proximity Caves | Accompanied by 6 allies 11347 | -4/Proximity Caves | Learned Research terminal intel 11361 | -4/Proximity Caves | Spotted B-86 Titan 11390 | -4/Proximity Caves | Learned Research stockpile data 11438 | -4/Proximity Caves | Discovered exit to Factory (range 6) 11473 | -4/Proximity Caves | Entered Factory 11473 | -4/Factory | Evolved 2 slots: Power x1, Propulsion x1 11474 | -4/Factory | Identified exit to Upper Caves 11576 | -4/Factory | Adv. Hacking Suite fried by hacking feedback 11657 | -4/Factory | Fabricated Adv. Hacking Suite (x1) 11680 | -4/Factory | Central database locked down 11693 | -4/Factory | Fabricated Adv. Hacking Suite (x1) 11726 | -4/Factory | Fabricated Lrg. Storage Unit (x1) 11821 | -4/Factory | Fabricated Cld. Field Propulsion Drive? 11899 | -4/Factory | Build established: Wizard-Sprinter 11921 | -4/Factory | Found Exp. Hacking Suite 11931 | -4/Factory | Entered Upper Caves 11964 | -4/Upper Caves | Encountered a Warlord checkpoint 11997 | -4/Upper Caves | Attracted the attention of an 0b10 checkpoint 12000 | -4/Upper Caves | Learned Research emergency access door positions 12030 | -4/Upper Caves | Discovered new exit (range 6) 12031 | -4/Upper Caves | Identified exit to Upper Caves 12031 | -4/Upper Caves | Entered another Upper Caves area 12076 | -4/Upper Caves | Discovered new exit (range 10) 12078 | -4/Upper Caves | Identified exit to Warlord 12091 | -4/Upper Caves | Entered Warlord 12120 | -4/Warlord | Met Warlord 12122 | -4/Warlord | Opened Warlord's prototype stash 12124 | -4/Warlord | Found Prototype Reactor 12124 | -4/Warlord | Identified Vortex Chain Reactor 12130 | -4/Warlord | Found Prototype Device 12135 | -4/Warlord | Identified Exp. Phase Shifter 12137 | -4/Warlord | Found Prototype Device 12137 | -4/Warlord | Identified Thermal Barrier 12142 | -4/Warlord | Found Prototype Hackware 12145 | -4/Warlord | Warlord's base attacked by MAIN.C 12146 | -4/Warlord | Found Prototype Processor 12334 | -4/Warlord | Opened side exit 12436 | -4/Warlord | Discovered new exit (range 12) 12439 | -4/Warlord | Identified exit to Proximity Caves 12439 | -4/Warlord | Entered Proximity Caves 12526 | -3/Proximity Caves | Discovered new exit (range 8) 12527 | -3/Proximity Caves | Identified exit to Research 12527 | -3/Proximity Caves | Entered Research 12527 | -3/Research | Evolved 2 slots: Utility x2 12528 | -3/Research | Identified exit to Research 12531 | -3/Research | Loaded intel: 19 terminal locations 12532 | -3/Research | Identified System Mapper 12534 | -3/Research | Identified exit to Armory 12534 | -3/Research | Identified exit to Quarantine 12645 | -3/Research | Garrison activated, responded to threat 12700 | -3/Research | Adv. System Shield fried by hacking feedback 12700 | -3/Research | Adv. Hacking Suite fried by hacking feedback 12763 | -3/Research | Fabricated Spectral Analyzer (x1) 12874 | -3/Research | Fabricated Exp. Weapon Cycler (x1) 12950 | -3/Research | Fabricated Exp. Targeting Computer? 12970 | -3/Research | Adv. Hacking Suite fried by hacking feedback 13056 | -3/Research | Repaired Exp. Cesium-ion Thruster 13076 | -3/Research | Repaired Lance 13322 | -3/Research | Spotted B-90 Cyclops 13327 | -3/Research | Entered Quarantine 13342 | -3/Quarantine | Found Alien Artifact 13371 | -3/Quarantine | Found Exp. Hacking Suite 13380 | -3/Quarantine | Met incapacitated Sigix Warrior 13380 | -3/Quarantine | Lockdown squad dispatched 13380 | -3/Quarantine | Acquired the access code to the Sigix quarantine chamber 13381 | -3/Quarantine | Unlocked Sigix quarantine chamber 13405 | -3/Quarantine | Identified Exp. Target Analyzer 13405 | -3/Quarantine | Identified Subatomic Replicator 13425 | -3/Quarantine | Found Alien Artifact 13436 | -3/Quarantine | Identified Core Reset Matrix 13474 | -3/Quarantine | Found Alien Slashing Weapon 13474 | -3/Quarantine | Identified Sigix Broadsword 13478 | -3/Quarantine | Spotted Lightning 13478 | -3/Quarantine | Spotted Lightning 13479 | -3/Quarantine | Spotted Lightning 13483 | -3/Quarantine | Central database locked down 13530 | -3/Quarantine | Spotted Fortress 13549 | -3/Quarantine | Discovered new exit (range 5) 13550 | -3/Quarantine | Identified exit to Section 7 13551 | -3/Quarantine | Entered Section 7 13614 | -3/Section 7 | Spotted S7 Guard 13622 | -3/Section 7 | Found Alien Artifact 13622 | -3/Section 7 | Identified Integrated Reactor 13622 | -3/Section 7 | Installed Integrated Reactor, increased core energy generation (+2%) 13639 | -3/Section 7 | Found Alien Artifact 13639 | -3/Section 7 | Identified Core Regenerator 13639 | -3/Section 7 | Used Core Regenerator, restored core integrity (+55) 13647 | -3/Section 7 | Spotted S7 Guard 13652 | -3/Section 7 | Found Alien Artifact 13652 | -3/Section 7 | Identified Integrated Heat Negator 13652 | -3/Section 7 | Installed Integrated Heat Negator, increased core heat dissipation (+2%) 13690 | -3/Section 7 | Spotted B-99 Colossus 13703 | -3/Section 7 | Found Integrated Dissipator 13703 | -3/Section 7 | Installed Integrated Dissipator, increased core heat dissipation (+2%) 13705 | -3/Section 7 | Found Integrated Dissipator 13705 | -3/Section 7 | Installed Integrated Dissipator, increased core heat dissipation (+2%) 13707 | -3/Section 7 | Found Integrated Dissipator 13707 | -3/Section 7 | Installed Integrated Dissipator, increased core heat dissipation (+2%) 13717 | -3/Section 7 | Repaired Exp. Utility Shielding? 13719 | -3/Section 7 | Found Alien Artifact 13721 | -3/Section 7 | Found Alien Artifact 13754 | -3/Section 7 | Activated Sigix Exoskeleton 13754 | -3/Section 7 | Unable to understand communications from Sigix Warrior 13789 | -3/Section 7 | Spotted Executioner 13789 | -3/Section 7 | Spotted Executioner 13807 | -3/Section 7 | Spotted Alpha 7 13819 | -3/Section 7 | Found Alien Artifact 13853 | -3/Section 7 | Spotted Alpha 7 13913 | -3/Section 7 | Found Integrated Dissipator 13913 | -3/Section 7 | Installed Integrated Dissipator, increased core heat dissipation (+2%) 13931 | -3/Section 7 | Garrison activated, responded to threat 13951 | -3/Section 7 | Found Integrated Reactor 13951 | -3/Section 7 | Installed Integrated Reactor, increased core energy generation (+2%) 13961 | -3/Section 7 | Spotted B-86 Titan 13967 | -3/Section 7 | Spotted Investigator 13967 | -3/Section 7 | Scanned by Researcher 13968 | -3/Section 7 | Intercept squad dispatched 13972 | -3/Section 7 | Entered Research 13972 | -2/Research | Warlord forces began assault on 0b10 13972 | -2/Research | Evolved 2 slots: Utility x2 13980 | -2/Research | Identified exit to Testing 13998 | -2/Research | Identified Integrity Redistributor 13998 | -2/Research | Identified LRC Energy Well 13998 | -2/Research | Identified LRC Matter Compressor 13999 | -2/Research | Used Subatomic Replicator to replicate Integrity Redistributor 14001 | -2/Research | Used Integrity Redistributor, redistributed integrity from core (-109) 14058 | -2/Research | Installed LRC Matter Compressor, increased matter storage capacity (+125) 14059 | -2/Research | Installed LRC Energy Well, increased energy storage capacity (+250) 14072 | -2/Research | Spotted B-90 Cyclops 14082 | -2/Research | Research machine network offline 14083 | -2/Research | Spotted B-90 Cyclops 14088 | -2/Research | Discovered new exit (range 8) 14090 | -2/Research | Identified exit to Access 14097 | -2/Research | Found Prototype Device 14119 | -2/Research | Met up with Warlord 14316 | -2/Research | Spotted Tracker 14333 | -2/Research | Spotted Tracker 14333 | -2/Research | Spotted Tracker 14339 | -2/Research | Spotted Combat Programmer 14344 | -2/Research | Borebot progress halted 14345 | -2/Research | Borebot progress halted 14359 | -2/Research | Entered Testing 14403 | -2/Testing | Found Prototype Device 14403 | -2/Testing | Identified Exp. Hardlight Generator 14415 | -2/Testing | Spotted PD-LSB9V8JICC 14431 | -2/Testing | Found Prototype Ballistic Gun 14431 | -2/Testing | Identified Hyp. Multirail 14454 | -2/Testing | Discovered exit to Access (range 2) 14531 | -2/Testing | Fabricated Exp. Targeting Computer (x1) 14559 | -2/Testing | Local fabrication network quarantined 14581 | -2/Testing | Fabricated Exp. Force Field (x1) 14600 | -2/Testing | Intercept squad dispatched 14600 | -2/Testing | Spotted Tracker 14600 | -2/Testing | Spotted Tracker 14602 | -2/Testing | Entered Access 14602 | -1/Access | Evolved 2 slots: Propulsion x1, Utility x1 14637 | -1/Access | Identified exit to Command 14742 | -1/Access | Fabricated Cld. Q-thruster (x1) 14853 | -1/Access | Fabricated Cld. Q-thruster? 14953 | -1/Access | Intercept squad dispatched 14960 | -1/Access | Spotted Tracker 14960 | -1/Access | Spotted Tracker 14968 | -1/Access | Destroyed Tracker 14981 | -1/Access | Found Exp. Phase Shifter 14990 | -1/Access | Spotted Combat Programmer 15033 | -1/Access | Destroyed Combat Programmer 15034 | -1/Access | Spotted Combat Programmer 15054 | -1/Access | Used Integrity Redistributor, redistributed integrity from core (-99) 15055 | -1/Access | Entered Command 15245 | -1/Command | Spotted B-99 Colossus 15253 | -1/Command | Destroyed 10 combat bots 15321 | -1/Command | Destroyed B-99 Colossus 15343 | -1/Command | First assault squad dispatched 15345 | -1/Command | Build established: Mechanic-Sprinter 15369 | -1/Command | Spotted Alpha 7 15410 | -1/Command | High security lockdown imminent 15427 | -1/Command | Destroyed 18 combat bots 15433 | -1/Command | Spotted B-99 Colossus 15458 | -1/Command | Spotted M Guard 15458 | -1/Command | Spotted M Guard 15460 | -1/Command | Spotted Combat Programmer 15461 | -1/Command | Spotted Combat Programmer 15470 | -1/Command | System corruption reached 10% 15490 | -1/Command | High security lockdown engaged 15547 | -1/Command | Destroyed Combat Programmer 15556 | -1/Command | Destroyed Combat Programmer 15677 | -1/Command | Phase Generator disabled 15700 | -1/Command | Destroyed 14 combat bots 15745 | -1/Command | Spotted Investigator 15746 | -1/Command | Destroyed Investigator 15814 | -1/Command | Destroyed 19 combat bots 15879 | -1/Command | Spotted Investigator 15880 | -1/Command | Destroyed Investigator 15920 | -1/Command | Destroyed 26 combat bots 16073 | -1/Command | Spotted Investigator 16075 | -1/Command | Destroyed Investigator 16204 | -1/Command | Destroyed 11 combat bots 16257 | -1/Command | Destroyed 7 combat bots 16340 | -1/Command | Spotted Investigator 16342 | -1/Command | Destroyed Investigator 16466 | -1/Command | Destroyed 45 combat bots 16489 | -1/Command | Destroyed M Guard 16498 | -1/Command | Found Prototype Device 16498 | -1/Command | Identified AEGIS Remote Shield 16502 | -1/Command | Found Exp. Targeting Computer 16504 | -1/Command | Found Prototype Reactor 16532 | -1/Command | Destroyed M Guard 16532 | -1/Command | Destroyed all MAIN.C guards 16612 | -1/Command | Destroyed Investigator 16751 | -1/Command | Destroyed 11 combat bots 18319 | -1/Command | Met MAIN.C 18319 | -1/Command | 0b10 Conduit disabled 18334 | -1/Command | MAIN.C activated Command garrisons 18365 | -1/Command | Destroyed MAIN.C Shell 18448 | -1/Command | Found Prototype Reactor 18448 | -1/Command | Identified Zero-point Reactor (x2) 18473 | -1/Command | Core integrity fell below 50% 18483 | -1/Command | Core integrity fell below 20% 18490 | -1/Command | Destroyed by P-80 Master with Gamma Rifle Last Messages --------------- 18479_ Slug penetrates Wall. 18480_ I-47 Archangel sends out distress signal. 18481_ Knocked back. 18481_ Exp. Weapon Cycler destroyed. 18482_ Adv. Targeting Computer destroyed. 18482_ Penetrated by Slug. 18482_ G-73 Enforcer suffers critical hit. 18482_ Slug penetrates L-61 Swordsman. 18482_ G-73 Enforcer suffers critical hit. 18484_ G-73 Enforcer knocked back. 18484_ Knocked back. 18485_ Exp. Targeting Computer destroyed. 18485_ Acquired 17 matter. 18485_ Acquired 56 matter. 18487_ Penetrated by Slug. 18487_ Lrg. Storage Unit destroyed. 18488_ Penetrated by Slug. 18488_ Slug penetrates P-80 Master. 18488_ Exp. Targeting Computer destroyed. 18488_ Cld. Q-thruster destroyed. Map ----- +----------------------------------------------------+ | ???????????#"T%%!%^%!= + "" #??????????????? | | ???????????#""=%=%[!! [# """" #??????????????? | | ???????????# "[[%*^!= =/% """" #??????????????? | | ???????????###"==%%"" [#* "" #??????????????? | | ?????????????#"!%="""" # #??????????????? | | ##?#####????##"![*%""" # #??????????????? | | #?# #?#### "[%=["" # #??????????????? | | ###! ###"##"""%" / [ #??????????????? | | ! / ^% # #??????????????? | | !! / " ##########??????????????? | | / " "" #???????????????????????? | | /! " """"" #???????????????????????? | | / " """" #???????????????????????? | | ### #######! != "" #???????????????????????? | | #?# #????##! !%* #???????????????????????? | | ##?#####????# !!!=%! #???????????????????????? | | ????????????# |[=!* #???????????????????????? | | ????????????###!*%|=* #???????????????????????? | | ????????????#####/########???????????????????????? | | ????????????# %*!![= #???????????????????????? | | ????????????# %! [* #???????????????????????? | | ????????????# %!= #???????????????????????? | | ?????######## #??????##???????????????? | | ?????# = # #????## #???????????????? | | ?????# ###s############## ????????????????? | | ?????# # g se *=%*@! + ?????????????????? | | ?????# = + g g p=[=[ + ??????????????????? | | ?????# # gl e [[ +???????????????????? | | ?????#" # gg g +???????????????????? | | ?????#" # #### ###???????????????????? | | ?????#" # #??# #?????????????????????? | | ?????#T ! + #??# #?????????????????????? | | ?????#" ###??# p #?????????????????????? | | ?????#" * #????# #?????????????????????? | | ?????#" #????# p ##?????????????????????? | | ?????# #????# #??????????????????????? | | ?????# #????# g #??????????????????????? | | ?????############# #??????????????????????? | | ?????# *%/%* h#??????????????????????? | | ?????# ==######## #??????????????????????? | | ?????# =%#??????# ib#??????????????????????? | | ?????# #??????# #??????????????????????? | | ?????# #??????# h#???##########?????????? | | ?????# #??????# =%##### ! #?????????? | | ?????# ########h h !%[ # #?????????? | | ?????####/##### ## **==%* # "" #?????????? | | ?#####?# % %g%!!%=!!% # """ #?????????? | | ?# ! #?# % =%% !s!%%[! / "T #?????????? | | ?# %=#?# ##### =#####%g!%[ #%*""" #???????### | | ?# #?# #???## ##???#!%=! # *!"" #?????? | +----------------------------------------------------+ Best States ------------- Heat Dissipation 192 Energy Generation 75 Energy Capacity 1950 Matter Stores 425 Matter Capacity 425 Sight Range 24 Robot Scan Range 30 Terrain Scan Density 10 Armor Coverage 450 Resistance: TH 50 Utility Shielding 90 Weapon Cycling 30 Phase Shifting 20 Evasion (%) 99 Targeting Accuracy 44 Target Analysis 12 Core Analysis 10 Armor Integrity Analysis 66 Recoil Reduction 4 Matter Filtering 50 Offensive Hacking 78 Defensive Hacking 28 Item Schematics ----------------- Imp. VTOL Module | -7/Factory | Scanalyzed Hacking Suite | -7/Factory | Scanalyzed Combat Drone Bay | -7/Data Miner | Free Lgt. Regenerative Plating | -7/Data Miner | Free Exp. Cesium-ion Thruster | -7/Data Miner | Free Exp. ECM Suite | -7/Data Miner | Free Kinetic Spear | -7/Data Miner | Free Imp. System Shield | -6/Factory | Hacked Imp. Hacking Suite | -6/Factory | Hacked Imp. Utility Shielding | -6/Factory | Hacked Battle Cannon | -6/Zion | Free Slug Cannon | -6/Zion | Free Nuclear Pulse Array | -5/Factory | Hacked Exp. Utility Shielding | -5/Factory | Hacked Adv. Hacking Suite | -5/Factory | Hacked Adv. System Shield | -5/Factory | Hacked Exp. Weapon Shielding | -5/Factory | Hacked Exp. Targeting Computer | -5/Factory | Hacked Imp. Cesium-ion Thruster | -5/Factory | Hacked Cld. Cesium-ion Thruster | -5/Factory | Hacked Exp. Propulsion Shielding | -5/Factory | Hacked Mic. Fission Core | -5/Factory | Hacked Assault Drone Bay | -5/Zhirov | Free Exp. Heat Sink | -5/Zhirov | Free Exp. Optical Array | -5/Zhirov | Free Imp. Arc Thrower | -5/Zhirov | Free Adv. Power Amplifier | -4/Factory | Hacked Cld. Nuclear Pulse Thruster | -4/Factory | Hacked Cld. Field Propulsion Drive | -4/Factory | Hacked Lrg. Storage Unit | -4/Factory | Hacked Spectral Analyzer | -4/Factory | Hacked Exp. Weapon Cycler | -3/Research | Hacked Exp. Force Field | -3/Research | Hacked Adv. Armor Integrity Analyzer | -3/Quarantine | Hacked Adv. Reaction Control System | -3/Quarantine | Hacked Cld. Q-thruster | -2/Testing | Hacked Adv. Phase Shifter | -1/Access | Hacked Robot Schematics ------------------ S-27 Virus | -7/Data Miner | Free G-50 Soldier | -7/Data Miner | Free G-67 Veteran | -7/Data Miner | Free L-41 Fighter | -7/Data Miner | Free X-72 Disruptor | -7/Data Miner | Free P-70 Sage | -7/Data Miner | Free I-36 Angel | -7/Data Miner | Free I-47 Archangel | -7/Data Miner | Free Fabricated ------------ Exp. Cesium-ion Thruster | x1 | -6/Factory Imp. System Shield | x1 | -6/Factory Adv. Hacking Suite | x1 | -5/Factory Exp. Utility Shielding | x1 | -5/Factory Adv. System Shield | x1 | -5/Factory Adv. System Shield | x1 | -5/Factory Nuclear Pulse Array | x2 | -5/Factory Adv. Hacking Suite | x1 | -5/Factory Adv. Hacking Suite | x1 | -5/Factory Adv. Hacking Suite | x1 | -5/Factory Adv. Force Field | x2 | -5/Factory | Preloaded Adv. Hacking Suite | x1 | -4/Factory Adv. Hacking Suite | x1 | -4/Factory Lrg. Storage Unit | x1 | -4/Factory Cld. Field Propulsion Drive | x1 | -4/Factory Spectral Analyzer | x1 | -3/Research Exp. Weapon Cycler | x1 | -3/Research Exp. Targeting Computer | x1 | -3/Research Exp. Targeting Computer | x1 | -2/Testing Exp. Force Field | x1 | -2/Testing Cld. Q-thruster | x1 | -1/Access Cld. Q-thruster | x1 | -1/Access Alien Tech Used ----------------- Integrated Dissipator Sigix Broadsword Integrated Reactor Core Regenerator Integrated Heat Negator Subatomic Replicator Integrity Redistributor LRC Matter Compressor LRC Energy Well Achievements -------------- Use The Force Challenges ------------ None Game ------ Seed TerrabombMomentumBlaster Manual? 0 Play Time 06:23:27 Cumulative 601.7 hours Start 2019.11.03 @ 10:47:31 End 2019.11.06 @ 11:16:09 Sessions 15 Manual Loads 0 Difficulty Rogue Special Mode None Game No. 377 Rogue 377 Adventurer 0 Explorer 0 Win Type - Total 99 Types 66/6/7/10/5/1/4 Lore% 96 Gallery% 94 Achievement% 80 Wizard Run 0 Options --------- ASCII 0 Keyboard 0 Movement Numpad Keybinds 0 Fullscreen 2 Font 18/SmallcapsGlow Map View 76x50 Tactical HUD 1 Map Filters NONE Filters NONE Steam 1 RUN: 79bbd0ec-1cc4-44c2-a206-012dd120e46a